Body,Body name,Date,Transaction number,Amount,Non recoverable VAT included in amount,Supplier name,Supplier ID,Expense area,Fund type,Expense type,Category description
http://thanet.gov.uk/supplierspend,Thanet District Council,02/03/2016,394526,125.55,,123 Send Ltd,123001,Operational Services,Revenue,"Equip, Furniture And Materials",Financial Services
http://thanet.gov.uk/supplierspend,Thanet District Council,02/03/2016,401940,617.53,,Adecco Uk Ltd,ADE005,Chief Executive,Revenue,Agency Staff,Human Resources
http://thanet.gov.uk/supplierspend,Thanet District Council,02/03/2016,402461,617.53,,Adecco Uk Ltd,ADE005,Chief Executive,Revenue,Agency Staff,Human Resources
http://thanet.gov.uk/supplierspend,Thanet District Council,02/03/2016,403400,225,,All Sign Solutions Ltd,ALL002,Operational Services,Revenue,"Print, Stat And Gen Off Exps",Building Construction Material
http://thanet.gov.uk/supplierspend,Thanet District Council,02/03/2016,403297,440,,Ashford Borough Council,ASH001,Corporate Resources and S151,Revenue,Grants & Subscriptions,Various Cats - Public Sector
http://thanet.gov.uk/supplierspend,Thanet District Council,02/03/2016,403213,915,,Ass Of Electoral Administrators,AEA001,Corporate Resources and S151,Revenue,Training,Human Resources
http://thanet.gov.uk/supplierspend,Thanet District Council,02/03/2016,402955,778,,Aston Walker,AST008,Community Services,Revenue,Services,Cemetery And Crematorium
http://thanet.gov.uk/supplierspend,Thanet District Council,02/03/2016,402956,778,,Aston Walker,AST008,Community Services,Revenue,Services,Cemetery And Crematorium
http://thanet.gov.uk/supplierspend,Thanet District Council,02/03/2016,402957,770,,Aston Walker,AST008,Community Services,Revenue,Services,Cemetery And Crematorium
http://thanet.gov.uk/supplierspend,Thanet District Council,02/03/2016,403305,2073.01,,Bt Payment Services Ltd,BTE003,Corporate Resources and S151,Balance Sheet,Telephone Holding Account,ICT
http://thanet.gov.uk/supplierspend,Thanet District Council,02/03/2016,403245,284.15,,Buckingham Futures Limited,BUC010,Community Services,Revenue,Agency Staff,Human Resources
http://thanet.gov.uk/supplierspend,Thanet District Council,02/03/2016,403246,656.7,,Buckingham Futures Limited,BUC010,Community Services,Revenue,Agency Staff,Human Resources
http://thanet.gov.uk/supplierspend,Thanet District Council,02/03/2016,403398,1090.38,,Buckingham Futures Limited,BUC010,Community Services,Revenue,Agency Staff,Human Resources
http://thanet.gov.uk/supplierspend,Thanet District Council,02/03/2016,403399,1165.5,,Buckingham Futures Limited,BUC010,Community Services,Revenue,Agency Staff,Human Resources
http://thanet.gov.uk/supplierspend,Thanet District Council,02/03/2016,402441,3536.81,,Call Flow Solutions Limited,CAL006,Corporate Resources and S151,Revenue,Communications & Computing,ICT
http://thanet.gov.uk/supplierspend,Thanet District Council,02/03/2016,403560,637.5,,Call Flow Solutions Limited,CAL006,Corporate Resources and S151,Revenue,Communications & Computing,ICT
http://thanet.gov.uk/supplierspend,Thanet District Council,02/03/2016,401914,1400,,Cameron Consulting (Uk) Limited,CAM022,Corporate Resources and S151,Balance Sheet,Repairs And Mtce Holding A/C,Consultancy
http://thanet.gov.uk/supplierspend,Thanet District Council,02/03/2016,403201,664.94,,Cfh Docmail Ltd,CFH001,East Kent Shared Services,Revenue,"Print, Stat And Gen Off Exps",Facilities And Management Serv
http://thanet.gov.uk/supplierspend,Thanet District Council,02/03/2016,403202,312,,Cfh Docmail Ltd,CFH001,East Kent Shared Services,Revenue,"Print, Stat And Gen Off Exps",Facilities And Management Serv
http://thanet.gov.uk/supplierspend,Thanet District Council,02/03/2016,403203,1445,,Cfh Docmail Ltd,CFH001,East Kent Shared Services,Revenue,"Print, Stat And Gen Off Exps",Facilities And Management Serv
http://thanet.gov.uk/supplierspend,Thanet District Council,02/03/2016,403204,561.75,,Cfh Docmail Ltd,CFH001,East Kent Shared Services,Revenue,"Print, Stat And Gen Off Exps",Facilities And Management Serv
http://thanet.gov.uk/supplierspend,Thanet District Council,02/03/2016,403206,1346.63,,Cfh Docmail Ltd,CFH001,East Kent Shared Services,Revenue,"Print, Stat And Gen Off Exps",Facilities And Management Serv
http://thanet.gov.uk/supplierspend,Thanet District Council,02/03/2016,403208,254.8,,Cfh Docmail Ltd,CFH001,East Kent Shared Services,Revenue,"Print, Stat And Gen Off Exps",Facilities And Management Serv
http://thanet.gov.uk/supplierspend,Thanet District Council,02/03/2016,403209,665.89,,Cfh Docmail Ltd,CFH001,East Kent Shared Services,Revenue,"Print, Stat And Gen Off Exps",Facilities And Management Serv
http://thanet.gov.uk/supplierspend,Thanet District Council,02/03/2016,403210,399,,Cfh Docmail Ltd,CFH001,East Kent Shared Services,Revenue,"Print, Stat And Gen Off Exps",Facilities And Management Serv
http://thanet.gov.uk/supplierspend,Thanet District Council,02/03/2016,403211,1360,,Cfh Docmail Ltd,CFH001,East Kent Shared Services,Revenue,"Print, Stat And Gen Off Exps",Facilities And Management Serv
http://thanet.gov.uk/supplierspend,Thanet District Council,02/03/2016,403212,1054,,Cfh Docmail Ltd,CFH001,East Kent Shared Services,Revenue,"Print, Stat And Gen Off Exps",Facilities And Management Serv
http://thanet.gov.uk/supplierspend,Thanet District Council,02/03/2016,403230,461.3,,Channel Commercials Plc,CCO001,Operational Services,Revenue,Direct Transport Costs,Vehicle Management
http://thanet.gov.uk/supplierspend,Thanet District Council,02/03/2016,403219,6402.44,,Computerland Uk Limited,COM045,Corporate Resources and S151,Revenue,Communications & Computing,ICT
http://thanet.gov.uk/supplierspend,Thanet District Council,02/03/2016,402641,925,,Creditsafe Business Solutions Ltd,CRE013,Corporate Resources and S151,Revenue,Grants & Subscriptions,Financial Services
http://thanet.gov.uk/supplierspend,Thanet District Council,02/03/2016,403472,275,,Creditsafe Business Solutions Ltd,CRE013,Corporate Resources and S151,Revenue,Grants & Subscriptions,Financial Services
http://thanet.gov.uk/supplierspend,Thanet District Council,02/03/2016,401952,1767,,Crown Estate,CRO022,Operational Services,Revenue,Rents,Maritime Services
http://thanet.gov.uk/supplierspend,Thanet District Council,02/03/2016,403364,3110.5,,Crown Estate,CRO022,Operational Services,Revenue,Rents,Maritime Services
http://thanet.gov.uk/supplierspend,Thanet District Council,02/03/2016,403237,257.15,,Dover Counselling Centre,DOV014,East Kent Shared Services,Revenue,Employee Related Schemes,Healthcare
http://thanet.gov.uk/supplierspend,Thanet District Council,02/03/2016,403238,360,,Dover Counselling Centre,DOV014,East Kent Shared Services,Revenue,Employee Related Schemes,Healthcare
http://thanet.gov.uk/supplierspend,Thanet District Council,02/03/2016,403298,367.5,,E Saunders Margate Ltd,SAU001,Corporate Resources and S151,Balance Sheet,Repairs And Mtce Holding A/C,Construction-Repair And Maint
http://thanet.gov.uk/supplierspend,Thanet District Council,02/03/2016,403366,524.89,,E Saunders Margate Ltd,SAU001,Corporate Resources and S151,Balance Sheet,Repairs And Mtce Holding A/C,Construction-Repair And Maint
http://thanet.gov.uk/supplierspend,Thanet District Council,02/03/2016,403218,249.2,,E.On,EON001,Community Services,Revenue,Energy Costs,Utilities
http://thanet.gov.uk/supplierspend,Thanet District Council,02/03/2016,402236,3340,,Extreme Environmental Services Ltd,EXT001,Corporate Resources and S151,Balance Sheet,Rechargeable Works,Facilities And Management Serv
http://thanet.gov.uk/supplierspend,Thanet District Council,02/03/2016,403368,588.06,,Family Mosaic Housing,FAM001,Corporate Resources and S151,Balance Sheet,Capital Exp-Non Council Assets,Housing Management
http://thanet.gov.uk/supplierspend,Thanet District Council,02/03/2016,403373,896.24,,Family Mosaic Housing,FAM001,Corporate Resources and S151,Balance Sheet,Capital Exp-Non Council Assets,Housing Management
http://thanet.gov.uk/supplierspend,Thanet District Council,02/03/2016,402902,3600,,Gas Advisory Services Limited,GAS012,Corporate Resources and S151,Balance Sheet,Repairs And Mtce Holding A/C,Consultancy
http://thanet.gov.uk/supplierspend,Thanet District Council,02/03/2016,403556,355.26,,Heath Lambert Limited (Client Money),HEA011,Corporate Resources and S151,Balance Sheet,Insurance Holding Account,Financial Services
http://thanet.gov.uk/supplierspend,Thanet District Council,02/03/2016,403557,9305.87,,Heath Lambert Limited (Client Money),HEA011,Corporate Resources and S151,Balance Sheet,Insurance Holding Account,Financial Services
http://thanet.gov.uk/supplierspend,Thanet District Council,02/03/2016,403471,225,,Holt & Wotton Ltd,HOL001,Corporate Resources and S151,Balance Sheet,Repairs And Mtce Holding A/C,Building Construction Material
http://thanet.gov.uk/supplierspend,Thanet District Council,02/03/2016,403425,4458,,Homes & Communities Agency,HOM013,Community Services,Revenue,Grants & Subscriptions,Government Agencies
http://thanet.gov.uk/supplierspend,Thanet District Council,02/03/2016,403427,4458,,Homes & Communities Agency,HOM013,Community Services,Revenue,Grants & Subscriptions,Government Agencies
http://thanet.gov.uk/supplierspend,Thanet District Council,02/03/2016,403429,4458,,Homes & Communities Agency,HOM013,Community Services,Revenue,Grants & Subscriptions,Government Agencies
http://thanet.gov.uk/supplierspend,Thanet District Council,02/03/2016,403431,4458,,Homes & Communities Agency,HOM013,Community Services,Revenue,Grants & Subscriptions,Government Agencies
http://thanet.gov.uk/supplierspend,Thanet District Council,02/03/2016,403433,4458,,Homes & Communities Agency,HOM013,Community Services,Revenue,Grants & Subscriptions,Government Agencies
http://thanet.gov.uk/supplierspend,Thanet District Council,02/03/2016,403435,4458,,Homes & Communities Agency,HOM013,Community Services,Revenue,Grants & Subscriptions,Government Agencies
http://thanet.gov.uk/supplierspend,Thanet District Council,02/03/2016,403437,4458,,Homes & Communities Agency,HOM013,Community Services,Revenue,Grants & Subscriptions,Government Agencies
http://thanet.gov.uk/supplierspend,Thanet District Council,02/03/2016,403439,6358,,Homes & Communities Agency,HOM013,Community Services,Revenue,Grants & Subscriptions,Government Agencies
http://thanet.gov.uk/supplierspend,Thanet District Council,02/03/2016,403441,4458,,Homes & Communities Agency,HOM013,Community Services,Revenue,Grants & Subscriptions,Government Agencies
http://thanet.gov.uk/supplierspend,Thanet District Council,02/03/2016,403443,4458,,Homes & Communities Agency,HOM013,Community Services,Revenue,Grants & Subscriptions,Government Agencies
http://thanet.gov.uk/supplierspend,Thanet District Council,02/03/2016,403445,4458,,Homes & Communities Agency,HOM013,Community Services,Revenue,Grants & Subscriptions,Government Agencies
http://thanet.gov.uk/supplierspend,Thanet District Council,02/03/2016,403447,17833,,Homes & Communities Agency,HOM013,Community Services,Revenue,Grants & Subscriptions,Government Agencies
http://thanet.gov.uk/supplierspend,Thanet District Council,02/03/2016,403449,8916,,Homes & Communities Agency,HOM013,Community Services,Revenue,Grants & Subscriptions,Government Agencies
http://thanet.gov.uk/supplierspend,Thanet District Council,02/03/2016,403451,13374,,Homes & Communities Agency,HOM013,Community Services,Revenue,Grants & Subscriptions,Government Agencies
http://thanet.gov.uk/supplierspend,Thanet District Council,02/03/2016,402867,442.52,,Hr Go (Kent) Ltd,HRG001,Corporate Resources and S151,Revenue,Agency Staff,Human Resources
http://thanet.gov.uk/supplierspend,Thanet District Council,02/03/2016,403365,436.6,,Hr Go (Kent) Ltd,HRG001,Community Services,Revenue,Agency Staff,Human Resources
http://thanet.gov.uk/supplierspend,Thanet District Council,02/03/2016,403391,436.6,,Hr Go (Kent) Ltd,HRG001,Community Services,Revenue,Agency Staff,Human Resources
http://thanet.gov.uk/supplierspend,Thanet District Council,02/03/2016,403392,486.55,,Hr Go (Kent) Ltd,HRG001,Operational Services,Revenue,Agency Staff,Human Resources
http://thanet.gov.uk/supplierspend,Thanet District Council,02/03/2016,403393,799.35,,Hr Go (Kent) Ltd,HRG001,Operational Services,Revenue,Agency Staff,Human Resources
http://thanet.gov.uk/supplierspend,Thanet District Council,02/03/2016,403394,432.53,,Hr Go (Kent) Ltd,HRG001,Operational Services,Revenue,Agency Staff,Human Resources
http://thanet.gov.uk/supplierspend,Thanet District Council,02/03/2016,403395,1048.12,,Hr Go (Kent) Ltd,HRG001,Operational Services,Revenue,Agency Staff,Human Resources
http://thanet.gov.uk/supplierspend,Thanet District Council,02/03/2016,403554,450,,Hugin Vikings Fc,HUG012,Community Services,Revenue,Grants & Subscriptions,Grants
http://thanet.gov.uk/supplierspend,Thanet District Council,02/03/2016,403105,210,,J Redpath Buchanan & Co Ltd,RED001,Corporate Resources and S151,Balance Sheet,Repairs And Mtce Holding A/C,Building Construction Material
http://thanet.gov.uk/supplierspend,Thanet District Council,02/03/2016,403234,26721.98,,J Rospo Building Contractors,ROS001,Corporate Resources and S151,Balance Sheet,Other Land And Buildings-Hra,Construction-Repair And Maint
http://thanet.gov.uk/supplierspend,Thanet District Council,02/03/2016,403369,1460.7,,John Gale,GAL001,Corporate Resources and S151,Balance Sheet,Capital Exp-Non Council Assets,Grants
http://thanet.gov.uk/supplierspend,Thanet District Council,02/03/2016,403222,986.8,,Kent County Council (Kcs),KCC003,Corporate Resources and S151,Revenue,Energy Costs,Facilities And Management Serv
http://thanet.gov.uk/supplierspend,Thanet District Council,02/03/2016,403223,1925.45,,Kent County Council (Kcs),KCC003,Corporate Resources and S151,Revenue,Energy Costs,Facilities And Management Serv
http://thanet.gov.uk/supplierspend,Thanet District Council,02/03/2016,403422,3556.98,,Kent County Council (Kcs),KCC003,Corporate Resources and S151,Revenue,"Equip, Furniture And Materials",Facilities And Management Serv
http://thanet.gov.uk/supplierspend,Thanet District Council,02/03/2016,403422,197.61,,Kent County Council (Kcs),KCC003,Community Services,Revenue,"Equip, Furniture And Materials",Facilities And Management Serv
http://thanet.gov.uk/supplierspend,Thanet District Council,02/03/2016,403422,988.05,,Kent County Council (Kcs),KCC003,Operational Services,Revenue,"Equip, Furniture And Materials",Facilities And Management Serv
http://thanet.gov.uk/supplierspend,Thanet District Council,02/03/2016,403422,197.61,,Kent County Council (Kcs),KCC003,East Kent Shared Services,Revenue,"Equip, Furniture And Materials",Facilities And Management Serv
http://thanet.gov.uk/supplierspend,Thanet District Council,02/03/2016,403300,593.6,,Ling Metals Limited,LIN004,Operational Services,Revenue,Cleaning & Domestic Supplies,Environmental Services
http://thanet.gov.uk/supplierspend,Thanet District Council,02/03/2016,402635,337.98,,Lyreco Uk Limited,LYR001,Community Services,Revenue,"Equip, Furniture And Materials",Stationery
http://thanet.gov.uk/supplierspend,Thanet District Council,02/03/2016,402635,1.09,,Lyreco Uk Limited,LYR001,Community Services,Revenue,"Print, Stat And Gen Off Exps",Stationery
http://thanet.gov.uk/supplierspend,Thanet District Council,02/03/2016,403549,15.94,,Lyreco Uk Limited,LYR001,Community Services,Revenue,Services,Stationery
http://thanet.gov.uk/supplierspend,Thanet District Council,02/03/2016,402818,450.58,,Mears Ltd,MEA003,Corporate Resources and S151,Revenue,"Repairs,  Alter & Mtce - Build",Construction-Repair And Maint
http://thanet.gov.uk/supplierspend,Thanet District Council,02/03/2016,402819,158.18,,Mears Ltd,MEA003,Corporate Resources and S151,Revenue,"Repairs,  Alter & Mtce - Build",Construction-Repair And Maint
http://thanet.gov.uk/supplierspend,Thanet District Council,02/03/2016,402819,90.24,,Mears Ltd,MEA003,Corporate Resources and S151,Balance Sheet,Rechargeable Works,Construction-Repair And Maint
http://thanet.gov.uk/supplierspend,Thanet District Council,02/03/2016,402868,1561.45,,Mears Ltd,MEA003,Operational Services,Revenue,"Repairs,  Alter & Mtce - Build",Construction-Repair And Maint
http://thanet.gov.uk/supplierspend,Thanet District Council,02/03/2016,402891,416.28,,Mears Ltd,MEA003,Corporate Resources and S151,Revenue,"Repairs,  Alter & Mtce - Build",Construction-Repair And Maint
http://thanet.gov.uk/supplierspend,Thanet District Council,02/03/2016,402891,902.54,,Mears Ltd,MEA003,Operational Services,Revenue,"Repairs,  Alter & Mtce - Build",Construction-Repair And Maint
http://thanet.gov.uk/supplierspend,Thanet District Council,02/03/2016,403270,324.13,,Mears Ltd,MEA003,Corporate Resources and S151,Balance Sheet,Repairs And Mtce Holding A/C,Construction-Repair And Maint
http://thanet.gov.uk/supplierspend,Thanet District Council,02/03/2016,403271,6122.93,,Mears Ltd,MEA003,Corporate Resources and S151,Balance Sheet,Repairs And Mtce Holding A/C,Construction-Repair And Maint
http://thanet.gov.uk/supplierspend,Thanet District Council,02/03/2016,403272,20442.18,,Mears Ltd,MEA003,Corporate Resources and S151,Balance Sheet,Repairs And Mtce Holding A/C,Construction-Repair And Maint
http://thanet.gov.uk/supplierspend,Thanet District Council,02/03/2016,403273,21103.95,,Mears Ltd,MEA003,Corporate Resources and S151,Balance Sheet,Repairs And Mtce Holding A/C,Construction-Repair And Maint
http://thanet.gov.uk/supplierspend,Thanet District Council,02/03/2016,403274,12140.49,,Mears Ltd,MEA003,Corporate Resources and S151,Balance Sheet,Repairs And Mtce Holding A/C,Construction-Repair And Maint
http://thanet.gov.uk/supplierspend,Thanet District Council,02/03/2016,403417,628.26,,Metric Group Ltd,MET001,Operational Services,Revenue,Communications & Computing,Street And Traffic Management
http://thanet.gov.uk/supplierspend,Thanet District Council,02/03/2016,402881,260,,Michelle Williams,WIL064,Community Services,Revenue,Services,Arts And Leisure Services
http://thanet.gov.uk/supplierspend,Thanet District Council,02/03/2016,402707,564.5,,Midland Software Limited,MID013,Corporate Resources and S151,Balance Sheet,Plant And Equipment,ICT
http://thanet.gov.uk/supplierspend,Thanet District Council,02/03/2016,402847,1417,,New Tech Security Ltd,NEW027,Corporate Resources and S151,Revenue,"Equip, Furniture And Materials",Facilities And Management Serv
http://thanet.gov.uk/supplierspend,Thanet District Council,02/03/2016,403384,11571.84,,Ocs Group Uk Ltd T/A Fountains,OCS005,Corporate Resources and S151,Balance Sheet,Repairs And Mtce Holding A/C,Cleaning And Janitorial
http://thanet.gov.uk/supplierspend,Thanet District Council,02/03/2016,403385,18056.74,,Ocs Group Uk Ltd T/A Fountains,OCS005,Operational Services,Revenue,Cleaning & Domestic Supplies,Cleaning And Janitorial
http://thanet.gov.uk/supplierspend,Thanet District Council,02/03/2016,403467,295.18,,Orange Personal Communications Ltd,ORA002,Corporate Resources and S151,Revenue,Communications & Computing,ICT
http://thanet.gov.uk/supplierspend,Thanet District Council,02/03/2016,403404,603.75,,Osborne Richardson Limited,OSB009,Community Services,Revenue,Agency Staff,Human Resources
http://thanet.gov.uk/supplierspend,Thanet District Council,02/03/2016,382642,8000,,Ove Arup & Partners Ltd,ARU004,Community Services,Revenue,Services,Consultancy
http://thanet.gov.uk/supplierspend,Thanet District Council,02/03/2016,403293,90.41,,Parkeon Limited,PAR063,Community Services,Revenue,"Equip, Furniture And Materials",Street And Traffic Management
http://thanet.gov.uk/supplierspend,Thanet District Council,02/03/2016,403293,935.59,,Parkeon Limited,PAR063,Operational Services,Revenue,"Equip, Furniture And Materials",Street And Traffic Management
http://thanet.gov.uk/supplierspend,Thanet District Council,02/03/2016,402828,25000,,Ramsgate Town Council,RAM031,Community Services,Revenue,Grants & Subscriptions,Various Cats - Public Sector
http://thanet.gov.uk/supplierspend,Thanet District Council,02/03/2016,403247,395,,Silgo Lubricants Ltd,SIL007,Operational Services,Revenue,Direct Transport Costs,Vehicle Management
http://thanet.gov.uk/supplierspend,Thanet District Council,02/03/2016,402938,-326.97,,Southern Electric,SEL007,Operational Services,Revenue,Energy Costs,Utilities
http://thanet.gov.uk/supplierspend,Thanet District Council,02/03/2016,402976,955.74,,Southern Electric,SEL007,Operational Services,Revenue,Energy Costs,Utilities
http://thanet.gov.uk/supplierspend,Thanet District Council,02/03/2016,402977,2153.58,,Southern Electric,SEL007,Community Services,Revenue,Energy Costs,Utilities
http://thanet.gov.uk/supplierspend,Thanet District Council,02/03/2016,402979,1721.66,,Southern Electric,SEL007,Community Services,Revenue,Energy Costs,Utilities
http://thanet.gov.uk/supplierspend,Thanet District Council,02/03/2016,402980,2913.53,,Southern Electric,SEL007,Community Services,Revenue,Energy Costs,Utilities
http://thanet.gov.uk/supplierspend,Thanet District Council,02/03/2016,402981,2319.6,,Southern Electric,SEL007,Community Services,Revenue,Energy Costs,Utilities
http://thanet.gov.uk/supplierspend,Thanet District Council,02/03/2016,402982,1327.44,,Southern Electric,SEL007,Operational Services,Revenue,Energy Costs,Utilities
http://thanet.gov.uk/supplierspend,Thanet District Council,02/03/2016,402986,4690.34,,Southern Electric,SEL007,Community Services,Revenue,Energy Costs,Utilities
http://thanet.gov.uk/supplierspend,Thanet District Council,02/03/2016,402987,2507.1,,Southern Electric,SEL007,Community Services,Revenue,Energy Costs,Utilities
http://thanet.gov.uk/supplierspend,Thanet District Council,02/03/2016,403283,1522.11,,Southern Electric,SEL007,Community Services,Revenue,Energy Costs,Utilities
http://thanet.gov.uk/supplierspend,Thanet District Council,02/03/2016,403288,317.82,,Southern Electric,SEL007,Community Services,Revenue,Energy Costs,Utilities
http://thanet.gov.uk/supplierspend,Thanet District Council,02/03/2016,402769,569.09,,Southern Water,SWA001,Operational Services,Revenue,Water Services,Utilities
http://thanet.gov.uk/supplierspend,Thanet District Council,02/03/2016,403108,2931.99,,Southern Water,SWA001,Corporate Resources and S151,Revenue,Water Services,Utilities
http://thanet.gov.uk/supplierspend,Thanet District Council,02/03/2016,403215,572.85,,Southern Water,SWA001,Operational Services,Revenue,Water Services,Utilities
http://thanet.gov.uk/supplierspend,Thanet District Council,02/03/2016,403280,727.81,,Southern Water,SWA001,Operational Services,Revenue,Water Services,Utilities
http://thanet.gov.uk/supplierspend,Thanet District Council,02/03/2016,403282,3311.75,,Southern Water,SWA001,Operational Services,Revenue,Water Services,Utilities
http://thanet.gov.uk/supplierspend,Thanet District Council,02/03/2016,402300,4000,,Spider Project Management Ltd,SPI009,Corporate Resources and S151,Balance Sheet,Investment Property For Lease,Consultancy
http://thanet.gov.uk/supplierspend,Thanet District Council,02/03/2016,402835,528,,Stagecoach Services Limited,STA023,Corporate Resources and S151,Balance Sheet,Staff Bus Permits Holding A/C,Public Transport
http://thanet.gov.uk/supplierspend,Thanet District Council,02/03/2016,402829,3984.36,,Standage & Co Limited,STA058,Corporate Resources and S151,Balance Sheet,Council Dwellings,Construction-Repair And Maint
http://thanet.gov.uk/supplierspend,Thanet District Council,02/03/2016,402830,52180.03,,Standage & Co Limited,STA058,Corporate Resources and S151,Balance Sheet,Council Dwellings,Construction-Repair And Maint
http://thanet.gov.uk/supplierspend,Thanet District Council,02/03/2016,402831,9900.69,,Standage & Co Limited,STA058,Corporate Resources and S151,Balance Sheet,Council Dwellings,Construction-Repair And Maint
http://thanet.gov.uk/supplierspend,Thanet District Council,02/03/2016,402832,14691.51,,Standage & Co Limited,STA058,Corporate Resources and S151,Balance Sheet,Council Dwellings,Construction-Repair And Maint
http://thanet.gov.uk/supplierspend,Thanet District Council,02/03/2016,402833,2364.74,,Standage & Co Limited,STA058,Corporate Resources and S151,Balance Sheet,Council Dwellings,Construction-Repair And Maint
http://thanet.gov.uk/supplierspend,Thanet District Council,02/03/2016,402959,343.25,,Tchibo Coffee International Ltd,TCH007,Corporate Resources and S151,Revenue,Catering,Catering
http://thanet.gov.uk/supplierspend,Thanet District Council,02/03/2016,403102,1112.49,,The Glenwood Hotel,GLE007,Community Services,Revenue,Services,Housing Management
http://thanet.gov.uk/supplierspend,Thanet District Council,02/03/2016,403103,3624.99,,The Glenwood Hotel,GLE007,Community Services,Revenue,Services,Housing Management
http://thanet.gov.uk/supplierspend,Thanet District Council,02/03/2016,403104,2999.98,,The Glenwood Hotel,GLE007,Community Services,Revenue,Services,Housing Management
http://thanet.gov.uk/supplierspend,Thanet District Council,02/03/2016,403372,2012,,Titan Lifts Ltd,TIT006,Corporate Resources and S151,Balance Sheet,Capital Exp-Non Council Assets,Facilities And Management Serv
http://thanet.gov.uk/supplierspend,Thanet District Council,02/03/2016,403374,1626,,Titan Lifts Ltd,TIT006,Corporate Resources and S151,Balance Sheet,Capital Exp-Non Council Assets,Facilities And Management Serv
http://thanet.gov.uk/supplierspend,Thanet District Council,02/03/2016,402854,464,,Total Merchandise Ltd,TOT012,Community Services,Revenue,"Equip, Furniture And Materials",Stationery
http://thanet.gov.uk/supplierspend,Thanet District Council,02/03/2016,403367,4867.21,,Trueden Disability Adaptations Ltd,TRU012,Corporate Resources and S151,Balance Sheet,Capital Exp-Non Council Assets,Grants
http://thanet.gov.uk/supplierspend,Thanet District Council,02/03/2016,403370,15382,,Trueden Disability Adaptations Ltd,TRU012,Corporate Resources and S151,Balance Sheet,Capital Exp-Non Council Assets,Grants
http://thanet.gov.uk/supplierspend,Thanet District Council,02/03/2016,403420,6569.05,,Vodafone Limited (Corporate),VOD001,Corporate Resources and S151,Balance Sheet,Mobile Phone Holding A/C,ICT
http://thanet.gov.uk/supplierspend,Thanet District Council,02/03/2016,403547,258.5,,West Yorkshire Pension Fund,WES050,Community Services,Revenue,Services,Financial Services
http://thanet.gov.uk/supplierspend,Thanet District Council,02/03/2016,403475,5003,,Wgh Ltd,WGH001,Community Services,Revenue,"Equip, Furniture And Materials",Consultancy
http://thanet.gov.uk/supplierspend,Thanet District Council,02/03/2016,403145,5000,,Zurich Management Services Ltd,ZUR004,Corporate Resources and S151,Balance Sheet,Insurance Holding Account,Financial Services
http://thanet.gov.uk/supplierspend,Thanet District Council,08/03/2016,403468,31605,,Albion Fencing&Construction Kent Ltd,ALB005,Operational Services,Revenue,"Repairs,  Alter & Mtce - Build",Building Construction Material
http://thanet.gov.uk/supplierspend,Thanet District Council,08/03/2016,403723,5500,,All About Asbestos Limited,ALL044,Operational Services,Revenue,"Repairs,  Alter & Mtce - Build",Environmental Services
http://thanet.gov.uk/supplierspend,Thanet District Council,08/03/2016,403522,451,,All Access Ltd,ALL031,Community Services,Revenue,Services,Building Construction Material
http://thanet.gov.uk/supplierspend,Thanet District Council,08/03/2016,403401,285,,All Sign Solutions Ltd,ALL002,Operational Services,Revenue,"Equip, Furniture And Materials",Building Construction Material
http://thanet.gov.uk/supplierspend,Thanet District Council,08/03/2016,403244,477.5,,Amenity Horticultural Serv Ltd,AME001,Operational Services,Revenue,"Repairs,  Alter & Mtce - Build",Horticultural
http://thanet.gov.uk/supplierspend,Thanet District Council,08/03/2016,403657,1540,,Amenity Horticultural Serv Ltd,AME001,Operational Services,Revenue,"Repairs,  Alter & Mtce - Build",Horticultural
http://thanet.gov.uk/supplierspend,Thanet District Council,08/03/2016,403691,5937.5,,Ass For Public Service Excellence,ASS013,Operational Services,Revenue,Services,Human Resources
http://thanet.gov.uk/supplierspend,Thanet District Council,08/03/2016,402161,10544.81,,Ass Of Electoral Administrators,AEA001,Corporate Governance,Revenue,Services,Human Resources
http://thanet.gov.uk/supplierspend,Thanet District Council,08/03/2016,403733,5291.54,,Ats Euromaster Ltd,ATS002,Operational Services,Revenue,Direct Transport Costs,Vehicle Management
http://thanet.gov.uk/supplierspend,Thanet District Council,08/03/2016,403997,8870,,Bramling Construction Ltd,BRA020,Corporate Resources and S151,Balance Sheet,Capital Exp-Non Council Assets,Grants
http://thanet.gov.uk/supplierspend,Thanet District Council,08/03/2016,403524,5100,,Bronzeshield Lifting Ltd,BRO057,Corporate Resources and S151,Balance Sheet,Plant And Equipment,Maritime Services
http://thanet.gov.uk/supplierspend,Thanet District Council,08/03/2016,403807,9600,,Capita Resourcing Ltd,CAP007,Corporate Resources and S151,Revenue,Agency Staff,Human Resources
http://thanet.gov.uk/supplierspend,Thanet District Council,08/03/2016,403497,303.8,,Castle Automotive & Eng Supp Ltd,CAS024,Operational Services,Revenue,"Equip, Furniture And Materials",Vehicle Management
http://thanet.gov.uk/supplierspend,Thanet District Council,08/03/2016,403701,1460,,Cipfa Business Ltd,CIP008,Corporate Resources and S151,Revenue,Grants & Subscriptions,Financial Services
http://thanet.gov.uk/supplierspend,Thanet District Council,08/03/2016,403704,1160,,Cipfa Business Ltd,CIP008,Corporate Resources and S151,Revenue,Grants & Subscriptions,Financial Services
http://thanet.gov.uk/supplierspend,Thanet District Council,08/03/2016,403505,283.58,,Civica Uk Ltd,CIV003,East Kent Shared Services,Revenue,Communications & Computing,ICT
http://thanet.gov.uk/supplierspend,Thanet District Council,08/03/2016,402298,7000,,Coastal Publications,COA018,Community Services,Revenue,Grants & Subscriptions,Arts And Leisure Services
http://thanet.gov.uk/supplierspend,Thanet District Council,08/03/2016,403847,1769.3,,Cobalt Telephone Technologies Ltd,COB002,Operational Services,Revenue,Services,ICT
http://thanet.gov.uk/supplierspend,Thanet District Council,08/03/2016,403720,294.11,,Computerland Uk Limited,COM045,Corporate Resources and S151,Revenue,"Equip, Furniture And Materials",ICT
http://thanet.gov.uk/supplierspend,Thanet District Council,08/03/2016,403954,147688.2,,Coombs (Canterbury) Ltd,COO033,Corporate Resources and S151,Balance Sheet,Other Land And Buildings-Hra,Construction-Repair And Maint
http://thanet.gov.uk/supplierspend,Thanet District Council,08/03/2016,402169,51148.35,,Dcb (Kent) Ltd,DCB001,Corporate Resources and S151,Balance Sheet,Repairs And Mtce Holding A/C,Construction-Repair And Maint
http://thanet.gov.uk/supplierspend,Thanet District Council,08/03/2016,402170,3644.26,,Dcb (Kent) Ltd,DCB001,Corporate Resources and S151,Balance Sheet,Repairs And Mtce Holding A/C,Construction-Repair And Maint
http://thanet.gov.uk/supplierspend,Thanet District Council,08/03/2016,402171,1270.5,,Dcb (Kent) Ltd,DCB001,Corporate Resources and S151,Balance Sheet,Repairs And Mtce Holding A/C,Construction-Repair And Maint
http://thanet.gov.uk/supplierspend,Thanet District Council,08/03/2016,402172,578.82,,Dcb (Kent) Ltd,DCB001,Corporate Resources and S151,Balance Sheet,Repairs And Mtce Holding A/C,Construction-Repair And Maint
http://thanet.gov.uk/supplierspend,Thanet District Council,08/03/2016,402639,4870.2,,Dcb (Kent) Ltd,DCB001,Corporate Resources and S151,Balance Sheet,Repairs And Mtce Holding A/C,Construction-Repair And Maint
http://thanet.gov.uk/supplierspend,Thanet District Council,08/03/2016,402739,98620.73,,Dcb (Kent) Ltd,DCB001,Corporate Resources and S151,Balance Sheet,Repairs And Mtce Holding A/C,Construction-Repair And Maint
http://thanet.gov.uk/supplierspend,Thanet District Council,08/03/2016,402740,5988.24,,Dcb (Kent) Ltd,DCB001,Corporate Resources and S151,Balance Sheet,Repairs And Mtce Holding A/C,Construction-Repair And Maint
http://thanet.gov.uk/supplierspend,Thanet District Council,08/03/2016,402741,3003,,Dcb (Kent) Ltd,DCB001,Corporate Resources and S151,Balance Sheet,Repairs And Mtce Holding A/C,Construction-Repair And Maint
http://thanet.gov.uk/supplierspend,Thanet District Council,08/03/2016,403800,250.25,,Dennis Eagle Ltd,DEN005,Operational Services,Revenue,Direct Transport Costs,Vehicle Management
http://thanet.gov.uk/supplierspend,Thanet District Council,08/03/2016,403801,2574.02,,Dennis Eagle Ltd,DEN005,Operational Services,Revenue,Direct Transport Costs,Vehicle Management
http://thanet.gov.uk/supplierspend,Thanet District Council,08/03/2016,403802,510.46,,Dennis Eagle Ltd,DEN005,Operational Services,Revenue,Direct Transport Costs,Vehicle Management
http://thanet.gov.uk/supplierspend,Thanet District Council,08/03/2016,403803,500.5,,Dennis Eagle Ltd,DEN005,Operational Services,Revenue,Direct Transport Costs,Vehicle Management
http://thanet.gov.uk/supplierspend,Thanet District Council,08/03/2016,403825,609.7,,Dennis Eagle Ltd,DEN005,Operational Services,Revenue,Direct Transport Costs,Vehicle Management
http://thanet.gov.uk/supplierspend,Thanet District Council,08/03/2016,403826,260.25,,Dennis Eagle Ltd,DEN005,Operational Services,Revenue,Direct Transport Costs,Vehicle Management
http://thanet.gov.uk/supplierspend,Thanet District Council,08/03/2016,403506,344.74,,E Saunders Margate Ltd,SAU001,Operational Services,Revenue,"Repairs,  Alter & Mtce - Build",Construction-Repair And Maint
http://thanet.gov.uk/supplierspend,Thanet District Council,08/03/2016,403722,264.8,,Eagle Envelopes Ltd,EAG001,East Kent Shared Services,Revenue,"Print, Stat And Gen Off Exps",Stationery
http://thanet.gov.uk/supplierspend,Thanet District Council,08/03/2016,403773,347.42,,East Kent Components Ltd,EKC006,Operational Services,Revenue,Direct Transport Costs,Vehicle Management
http://thanet.gov.uk/supplierspend,Thanet District Council,08/03/2016,403819,272,,East Kent Components Ltd,EKC006,Operational Services,Revenue,Direct Transport Costs,Vehicle Management
http://thanet.gov.uk/supplierspend,Thanet District Council,08/03/2016,403874,279.84,,East Kent Components Ltd,EKC006,Operational Services,Revenue,Direct Transport Costs,Vehicle Management
http://thanet.gov.uk/supplierspend,Thanet District Council,08/03/2016,403694,9740,,Ecospan Environmental Ltd,ECO006,Operational Services,Revenue,"Repairs,  Alter & Mtce - Build",Environmental Services
http://thanet.gov.uk/supplierspend,Thanet District Council,08/03/2016,402459,168.9,,Electoral Reform Services,ELE010,Corporate Governance,Revenue,Communications & Computing,Facilities And Management Serv
http://thanet.gov.uk/supplierspend,Thanet District Council,08/03/2016,402459,1023.59,,Electoral Reform Services,ELE010,Corporate Governance,Revenue,"Print, Stat And Gen Off Exps",Facilities And Management Serv
http://thanet.gov.uk/supplierspend,Thanet District Council,08/03/2016,403699,2290,,Essex County Council,ESS002,Corporate Governance,Revenue,Services,Various Cats - Public Sector
http://thanet.gov.uk/supplierspend,Thanet District Council,08/03/2016,403996,1068.4,,Family Mosaic Housing,FAM001,Corporate Resources and S151,Balance Sheet,Capital Exp-Non Council Assets,Housing Management
http://thanet.gov.uk/supplierspend,Thanet District Council,08/03/2016,403999,1125.36,,Family Mosaic Housing,FAM001,Corporate Resources and S151,Balance Sheet,Capital Exp-Non Council Assets,Housing Management
http://thanet.gov.uk/supplierspend,Thanet District Council,08/03/2016,403759,560,,Florence Court Hotel,FLO003,Community Services,Revenue,Services,Housing Management
http://thanet.gov.uk/supplierspend,Thanet District Council,08/03/2016,403760,400,,Florence Court Hotel,FLO003,Community Services,Revenue,Services,Housing Management
http://thanet.gov.uk/supplierspend,Thanet District Council,08/03/2016,403761,935,,Florence Court Hotel,FLO003,Community Services,Revenue,Services,Housing Management
http://thanet.gov.uk/supplierspend,Thanet District Council,08/03/2016,403763,455,,Florence Court Hotel,FLO003,Community Services,Revenue,Services,Housing Management
http://thanet.gov.uk/supplierspend,Thanet District Council,08/03/2016,403764,870,,Florence Court Hotel,FLO003,Community Services,Revenue,Services,Housing Management
http://thanet.gov.uk/supplierspend,Thanet District Council,08/03/2016,403766,960,,Florence Court Hotel,FLO003,Community Services,Revenue,Services,Housing Management
http://thanet.gov.uk/supplierspend,Thanet District Council,08/03/2016,403488,977.5,,Frandham Boarding Kennels,FRA010,Operational Services,Revenue,Services,Environmental Services
http://thanet.gov.uk/supplierspend,Thanet District Council,08/03/2016,403484,924.1,,Future-Tech Sci Ltd,FUT001,Corporate Resources and S151,Revenue,"Repairs,  Alter & Mtce - Build",Facilities And Management Serv
http://thanet.gov.uk/supplierspend,Thanet District Council,08/03/2016,403675,220,,Gerlack & Thorne Ltd,GER001,Operational Services,Revenue,"Repairs,  Alter & Mtce - Build",Construction-Repair And Maint
http://thanet.gov.uk/supplierspend,Thanet District Council,08/03/2016,403718,215.2,,Haynes Of Maidstone Ltd,HAY008,Operational Services,Revenue,Direct Transport Costs,Vehicle Management
http://thanet.gov.uk/supplierspend,Thanet District Council,08/03/2016,403703,608.46,,Hays Specialist Recruitment Ltd,HAY020,Community Services,Revenue,Agency Staff,Human Resources
http://thanet.gov.uk/supplierspend,Thanet District Council,08/03/2016,403998,9949.1,,Hfd Construction,HFD001,Corporate Resources and S151,Balance Sheet,Capital Exp-Non Council Assets,Grants
http://thanet.gov.uk/supplierspend,Thanet District Council,08/03/2016,403390,1767.9,,Hr Go (Kent) Ltd,HRG001,Operational Services,Revenue,Agency Staff,Human Resources
http://thanet.gov.uk/supplierspend,Thanet District Council,08/03/2016,403526,2574.84,,Hr Go (Kent) Ltd,HRG001,Operational Services,Revenue,Agency Staff,Human Resources
http://thanet.gov.uk/supplierspend,Thanet District Council,08/03/2016,403527,10677.88,,Hr Go (Kent) Ltd,HRG001,Operational Services,Revenue,Agency Staff,Human Resources
http://thanet.gov.uk/supplierspend,Thanet District Council,08/03/2016,403850,1065.06,,Hr Go (Kent) Ltd,HRG001,Operational Services,Revenue,Agency Staff,Human Resources
http://thanet.gov.uk/supplierspend,Thanet District Council,08/03/2016,403851,1103.07,,Hr Go (Kent) Ltd,HRG001,Operational Services,Revenue,Agency Staff,Human Resources
http://thanet.gov.uk/supplierspend,Thanet District Council,08/03/2016,403858,432.53,,Hr Go (Kent) Ltd,HRG001,Operational Services,Revenue,Agency Staff,Human Resources
http://thanet.gov.uk/supplierspend,Thanet District Council,08/03/2016,403859,486.55,,Hr Go (Kent) Ltd,HRG001,Operational Services,Revenue,Agency Staff,Human Resources
http://thanet.gov.uk/supplierspend,Thanet District Council,08/03/2016,403508,496.6,,Imperial Civil Enforcement Sols Ltd,IMP008,Operational Services,Revenue,"Equip, Furniture And Materials",Street And Traffic Management
http://thanet.gov.uk/supplierspend,Thanet District Council,08/03/2016,403754,210,,J Redpath Buchanan & Co Ltd,RED001,Corporate Resources and S151,Balance Sheet,Repairs And Mtce Holding A/C,Building Construction Material
http://thanet.gov.uk/supplierspend,Thanet District Council,08/03/2016,403755,210,,J Redpath Buchanan & Co Ltd,RED001,Corporate Resources and S151,Balance Sheet,Repairs And Mtce Holding A/C,Building Construction Material
http://thanet.gov.uk/supplierspend,Thanet District Council,08/03/2016,403756,210,,J Redpath Buchanan & Co Ltd,RED001,Corporate Resources and S151,Balance Sheet,Repairs And Mtce Holding A/C,Building Construction Material
http://thanet.gov.uk/supplierspend,Thanet District Council,08/03/2016,403806,210,,J Redpath Buchanan & Co Ltd,RED001,Corporate Resources and S151,Balance Sheet,Repairs And Mtce Holding A/C,Building Construction Material
http://thanet.gov.uk/supplierspend,Thanet District Council,08/03/2016,403480,6730.68,,J Rospo Building Contractors,ROS001,Operational Services,Revenue,"Repairs,  Alter & Mtce - Build",Construction-Repair And Maint
http://thanet.gov.uk/supplierspend,Thanet District Council,08/03/2016,403495,256,,Jane Chapman,CHA066,Corporate Resources and S151,Revenue,Training,Human Resources
http://thanet.gov.uk/supplierspend,Thanet District Council,08/03/2016,403500,500,,K S & S Community Rehab Company Ltd,KSS002,Community Services,Revenue,Services,Special Community Care
http://thanet.gov.uk/supplierspend,Thanet District Council,08/03/2016,402861,10485.12,,Kent County Council,KCC002,Community Services,Revenue,Grants & Subscriptions,Various Cats - Public Sector
http://thanet.gov.uk/supplierspend,Thanet District Council,08/03/2016,402862,10485.12,,Kent County Council,KCC002,Community Services,Revenue,Grants & Subscriptions,Various Cats - Public Sector
http://thanet.gov.uk/supplierspend,Thanet District Council,08/03/2016,402863,10485.12,,Kent County Council,KCC002,Community Services,Revenue,Grants & Subscriptions,Various Cats - Public Sector
http://thanet.gov.uk/supplierspend,Thanet District Council,08/03/2016,403226,3591,,Kent County Council,KCC002,Community Services,Revenue,Services,Various Cats - Public Sector
http://thanet.gov.uk/supplierspend,Thanet District Council,08/03/2016,403275,1995,,Kent County Council,KCC002,Operational Services,Revenue,"Repairs,  Alter & Mtce - Build",Various Cats - Public Sector
http://thanet.gov.uk/supplierspend,Thanet District Council,08/03/2016,403423,2330.66,,Kent County Council,KCC002,Corporate Resources and S151,Revenue,Rents,Various Cats - Public Sector
http://thanet.gov.uk/supplierspend,Thanet District Council,08/03/2016,403687,5586,,Kent County Council,KCC002,Operational Services,Revenue,"Repairs,  Alter & Mtce - Build",Various Cats - Public Sector
http://thanet.gov.uk/supplierspend,Thanet District Council,08/03/2016,403715,244.86,,Kent County Council,KCC002,Community Services,Revenue,Services,Various Cats - Public Sector
http://thanet.gov.uk/supplierspend,Thanet District Council,08/03/2016,403715,163.24,,Kent County Council,KCC002,Corporate Governance,Revenue,Services,Various Cats - Public Sector
http://thanet.gov.uk/supplierspend,Thanet District Council,08/03/2016,403716,326.48,,Kent County Council,KCC002,Operational Services,Revenue,Services,Various Cats - Public Sector
http://thanet.gov.uk/supplierspend,Thanet District Council,08/03/2016,403662,31397.77,,Key Pointing Ltd,KEY004,Corporate Resources and S151,Balance Sheet,Repairs And Mtce Holding A/C,Construction-Repair And Maint
http://thanet.gov.uk/supplierspend,Thanet District Council,08/03/2016,403804,2035,,Liberty Printers(Ar& Rf Reddin) Ltd,LIB002,Operational Services,Revenue,"Print, Stat And Gen Off Exps",Street And Traffic Management
http://thanet.gov.uk/supplierspend,Thanet District Council,08/03/2016,403362,527.27,,Lister Wilder Limited,LIS002,Operational Services,Revenue,"Equip, Furniture And Materials",Horticultural
http://thanet.gov.uk/supplierspend,Thanet District Council,08/03/2016,403375,756.84,,Local World Limited,LOC018,Community Services,Revenue,Miscellaneous Expenses,Facilities And Management Serv
http://thanet.gov.uk/supplierspend,Thanet District Council,08/03/2016,403376,408,,Local World Limited,LOC018,Community Services,Revenue,Miscellaneous Expenses,Facilities And Management Serv
http://thanet.gov.uk/supplierspend,Thanet District Council,08/03/2016,403688,1513.68,,Local World Limited,LOC018,Community Services,Revenue,Miscellaneous Expenses,Facilities And Management Serv
http://thanet.gov.uk/supplierspend,Thanet District Council,08/03/2016,403836,516.88,,Mears Ltd,MEA003,Operational Services,Revenue,"Repairs,  Alter & Mtce - Build",Construction-Repair And Maint
http://thanet.gov.uk/supplierspend,Thanet District Council,08/03/2016,403837,572.91,,Mears Ltd,MEA003,Operational Services,Revenue,"Repairs,  Alter & Mtce - Build",Construction-Repair And Maint
http://thanet.gov.uk/supplierspend,Thanet District Council,08/03/2016,403838,1013.57,,Mears Ltd,MEA003,Corporate Resources and S151,Balance Sheet,Repairs And Mtce Holding A/C,Construction-Repair And Maint
http://thanet.gov.uk/supplierspend,Thanet District Council,08/03/2016,403839,4167.92,,Mears Ltd,MEA003,Corporate Resources and S151,Balance Sheet,Repairs And Mtce Holding A/C,Construction-Repair And Maint
http://thanet.gov.uk/supplierspend,Thanet District Council,08/03/2016,403840,5667.25,,Mears Ltd,MEA003,Corporate Resources and S151,Balance Sheet,Repairs And Mtce Holding A/C,Construction-Repair And Maint
http://thanet.gov.uk/supplierspend,Thanet District Council,08/03/2016,403841,5619.58,,Mears Ltd,MEA003,Corporate Resources and S151,Balance Sheet,Repairs And Mtce Holding A/C,Construction-Repair And Maint
http://thanet.gov.uk/supplierspend,Thanet District Council,08/03/2016,403416,4872,,Metric Group Ltd,MET001,Operational Services,Revenue,"Equip, Furniture And Materials",Street And Traffic Management
http://thanet.gov.uk/supplierspend,Thanet District Council,08/03/2016,403741,-590.4,,Metric Group Ltd,MET001,Operational Services,Revenue,"Equip, Furniture And Materials",Street And Traffic Management
http://thanet.gov.uk/supplierspend,Thanet District Council,08/03/2016,403504,51077.31,,Molyneux Rose Ltd Cl Acc-I/S M'Gate,MOL002,Operational Services,Revenue,Rents,Financial Services
http://thanet.gov.uk/supplierspend,Thanet District Council,08/03/2016,403509,48253.05,,Molyneux Rose Ltd Cl Acc-I/S R'Gate,MOL003,Operational Services,Revenue,Rents,Facilities And Management Serv
http://thanet.gov.uk/supplierspend,Thanet District Council,08/03/2016,402792,209.44,,Morgan Jones Ltd,MOR001,Community Services,Revenue,Agency Staff,Human Resources
http://thanet.gov.uk/supplierspend,Thanet District Council,08/03/2016,403728,523.6,,Morgan Jones Ltd,MOR001,Corporate Resources and S151,Revenue,Agency Staff,Human Resources
http://thanet.gov.uk/supplierspend,Thanet District Council,08/03/2016,403729,564.74,,Morgan Jones Ltd,MOR001,Corporate Resources and S151,Revenue,Agency Staff,Human Resources
http://thanet.gov.uk/supplierspend,Thanet District Council,08/03/2016,403730,582.75,,Morgan Jones Ltd,MOR001,Community Services,Revenue,Agency Staff,Human Resources
http://thanet.gov.uk/supplierspend,Thanet District Council,08/03/2016,403834,2424.74,,National Express Ltd,NAT010,Community Services,Revenue,Services,Agency Payments
http://thanet.gov.uk/supplierspend,Thanet District Council,08/03/2016,403700,550,,Ncc Services Ltd,NCC003,East Kent Shared Services,Revenue,Communications & Computing,ICT
http://thanet.gov.uk/supplierspend,Thanet District Council,08/03/2016,403386,797.69,,Ocs Group Uk Ltd T/A Fountains,OCS005,Corporate Resources and S151,Revenue,Cleaning & Domestic Supplies,Cleaning And Janitorial
http://thanet.gov.uk/supplierspend,Thanet District Council,08/03/2016,403388,442.13,,Ocs Group Uk Ltd T/A Fountains,OCS005,Operational Services,Revenue,Fixtures & Fittings,Cleaning And Janitorial
http://thanet.gov.uk/supplierspend,Thanet District Council,08/03/2016,403389,254.46,,Ocs Group Uk Ltd T/A Fountains,OCS005,Operational Services,Revenue,Fixtures & Fittings,Cleaning And Janitorial
http://thanet.gov.uk/supplierspend,Thanet District Council,08/03/2016,403742,276.55,,Parkeon Limited,PAR063,Operational Services,Revenue,"Equip, Furniture And Materials",Street And Traffic Management
http://thanet.gov.uk/supplierspend,Thanet District Council,08/03/2016,403278,1149.5,,Portcullis Gate Automation Limited,POR021,Operational Services,Revenue,"Repairs,  Alter & Mtce - Build",Maritime Services
http://thanet.gov.uk/supplierspend,Thanet District Council,08/03/2016,403995,840,,Post Office Ltd,POS001,Operational Services,Revenue,Direct Transport Costs,Financial Services
http://thanet.gov.uk/supplierspend,Thanet District Council,08/03/2016,403669,848.25,,Profile Security Services Limited,PRO018,Operational Services,Revenue,Services,Facilities And Management Serv
http://thanet.gov.uk/supplierspend,Thanet District Council,08/03/2016,403477,450,,R Cannon,CAN007,Operational Services,Revenue,Services,Maritime Services
http://thanet.gov.uk/supplierspend,Thanet District Council,08/03/2016,403478,450,,R Cannon,CAN007,Operational Services,Revenue,Services,Maritime Services
http://thanet.gov.uk/supplierspend,Thanet District Council,08/03/2016,403697,350,,R Cannon,CAN007,Operational Services,Revenue,Services,Maritime Services
http://thanet.gov.uk/supplierspend,Thanet District Council,08/03/2016,403698,450,,R Cannon,CAN007,Operational Services,Revenue,Services,Maritime Services
http://thanet.gov.uk/supplierspend,Thanet District Council,08/03/2016,403485,1320,,Reed Specialist Recruitment Ltd,REE015,East Kent Shared Services,Revenue,Agency Staff,Human Resources
http://thanet.gov.uk/supplierspend,Thanet District Council,08/03/2016,403525,1265.02,,Royal Mail,ROY004,Corporate Resources and S151,Revenue,Communications & Computing,Mail Services
http://thanet.gov.uk/supplierspend,Thanet District Council,08/03/2016,403501,2209.33,,Securitas Security Services (Uk) Ltd,SEC019,Corporate Resources and S151,Revenue,Services,Facilities And Management Serv
http://thanet.gov.uk/supplierspend,Thanet District Council,08/03/2016,403513,2209.33,,Securitas Security Services (Uk) Ltd,SEC019,Corporate Resources and S151,Revenue,Services,Facilities And Management Serv
http://thanet.gov.uk/supplierspend,Thanet District Council,08/03/2016,402628,2064,,Sharpe Pritchard Llp,SHA030,Corporate Resources and S151,Balance Sheet,Other Land And Buildings-Hra,Legal Services
http://thanet.gov.uk/supplierspend,Thanet District Council,08/03/2016,403469,513.6,,Signway Supplies (Datchet) Limited,SIG013,Operational Services,Revenue,"Repairs,  Alter & Mtce - Build",Highway Equipment And Material
http://thanet.gov.uk/supplierspend,Thanet District Council,08/03/2016,403736,323.44,,Southern Electric,SEL007,Community Services,Revenue,Energy Costs,Utilities
http://thanet.gov.uk/supplierspend,Thanet District Council,08/03/2016,403908,264.25,,Southern Electric,SEL007,Operational Services,Revenue,Energy Costs,Utilities
http://thanet.gov.uk/supplierspend,Thanet District Council,08/03/2016,403912,215.76,,Southern Electric,SEL007,Operational Services,Revenue,Energy Costs,Utilities
http://thanet.gov.uk/supplierspend,Thanet District Council,08/03/2016,403466,282.8,,Southern Water,SWA001,Community Services,Revenue,Water Services,Utilities
http://thanet.gov.uk/supplierspend,Thanet District Council,08/03/2016,403566,-262.33,,Southern Water,SWA001,Operational Services,Revenue,Water Services,Utilities
http://thanet.gov.uk/supplierspend,Thanet District Council,08/03/2016,403510,232.2,,Sparshatts Of Kent Ltd,SPA008,Operational Services,Revenue,Direct Transport Costs,Vehicle Management
http://thanet.gov.uk/supplierspend,Thanet District Council,08/03/2016,403299,320.4,,Thanet Waste Services Ltd,TWA001,Operational Services,Revenue,Private Contractors,Environmental Services
http://thanet.gov.uk/supplierspend,Thanet District Council,08/03/2016,403516,2937.49,,The Glenwood Hotel,GLE007,Community Services,Revenue,Services,Housing Management
http://thanet.gov.uk/supplierspend,Thanet District Council,08/03/2016,403517,3412.48,,The Glenwood Hotel,GLE007,Community Services,Revenue,Services,Housing Management
http://thanet.gov.uk/supplierspend,Thanet District Council,08/03/2016,403518,2291.66,,The Glenwood Hotel,GLE007,Community Services,Revenue,Services,Housing Management
http://thanet.gov.uk/supplierspend,Thanet District Council,08/03/2016,403512,348,,Westbury Industrial Supplies Ltd,WES042,Operational Services,Revenue,"Clothes, Uniforms & Laundry",Clothing
http://thanet.gov.uk/supplierspend,Thanet District Council,08/03/2016,399109,271417.73,,Your Leisure Kent Limited,YOU016,Corporate Resources and S151,Balance Sheet,Your Leisure Management/Works,Arts And Leisure Services
http://thanet.gov.uk/supplierspend,Thanet District Council,08/03/2016,399110,-271417.73,,Your Leisure Kent Limited,YOU016,Corporate Resources and S151,Balance Sheet,Your Leisure Management/Works,Arts And Leisure Services
http://thanet.gov.uk/supplierspend,Thanet District Council,09/03/2016,404186,400000,,REDACTED COMMERCIAL CONFIDENTIALITY,N/A,Operational Services,Revenue,Other Transfer Payments,Legal Services
http://thanet.gov.uk/supplierspend,Thanet District Council,15/03/2016,404203,475,,A& C Pumps Ltd,ACP001,Operational Services,Revenue,"Equip, Furniture And Materials",Building Construction Material
http://thanet.gov.uk/supplierspend,Thanet District Council,15/03/2016,403186,617.53,,Adecco Uk Ltd,ADE005,Chief Executive,Revenue,Agency Staff,Human Resources
http://thanet.gov.uk/supplierspend,Thanet District Council,15/03/2016,403486,617.53,,Adecco Uk Ltd,ADE005,Chief Executive,Revenue,Agency Staff,Human Resources
http://thanet.gov.uk/supplierspend,Thanet District Council,15/03/2016,403923,617.53,,Adecco Uk Ltd,ADE005,Chief Executive,Revenue,Agency Staff,Human Resources
http://thanet.gov.uk/supplierspend,Thanet District Council,15/03/2016,403717,975,,Advanced Business Solutions,COA011,Corporate Resources and S151,Revenue,Communications & Computing,ICT
http://thanet.gov.uk/supplierspend,Thanet District Council,15/03/2016,403799,3900,,Advanced Business Solutions,COA011,Corporate Resources and S151,Revenue,Communications & Computing,ICT
http://thanet.gov.uk/supplierspend,Thanet District Council,15/03/2016,404199,515,,Amber Driver Training,AMB004,Corporate Resources and S151,Revenue,Training,Human Resources
http://thanet.gov.uk/supplierspend,Thanet District Council,15/03/2016,404200,515,,Amber Driver Training,AMB004,Corporate Resources and S151,Revenue,Training,Human Resources
http://thanet.gov.uk/supplierspend,Thanet District Council,15/03/2016,404201,515,,Amber Driver Training,AMB004,Corporate Resources and S151,Revenue,Training,Human Resources
http://thanet.gov.uk/supplierspend,Thanet District Council,15/03/2016,403667,330,,Andy Morris,MOR028,Community Services,Revenue,Services,Arts And Leisure Services
http://thanet.gov.uk/supplierspend,Thanet District Council,15/03/2016,403668,322.5,,Andy Morris,MOR028,Community Services,Revenue,Services,Arts And Leisure Services
http://thanet.gov.uk/supplierspend,Thanet District Council,15/03/2016,403712,372.4,,Automail Envelopes Ltd,AUT005,East Kent Shared Services,Revenue,"Print, Stat And Gen Off Exps",Stationery
http://thanet.gov.uk/supplierspend,Thanet District Council,15/03/2016,404286,265,,Benchmarq Limited,BEN013,Operational Services,Revenue,Communications & Computing,ICT
http://thanet.gov.uk/supplierspend,Thanet District Council,15/03/2016,404345,30000,,Broadstairs & St Peters Town Council,BRO005,Community Services,Revenue,Grants & Subscriptions,Various Cats - Public Sector
http://thanet.gov.uk/supplierspend,Thanet District Council,15/03/2016,403828,1071,,Buckingham Futures Limited,BUC010,Community Services,Revenue,Agency Staff,Human Resources
http://thanet.gov.uk/supplierspend,Thanet District Council,15/03/2016,403829,1128.5,,Buckingham Futures Limited,BUC010,Community Services,Revenue,Agency Staff,Human Resources
http://thanet.gov.uk/supplierspend,Thanet District Council,15/03/2016,403830,1339.4,,Buckingham Futures Limited,BUC010,Community Services,Revenue,Agency Staff,Human Resources
http://thanet.gov.uk/supplierspend,Thanet District Council,15/03/2016,403925,716.4,,Buckingham Futures Limited,BUC010,Community Services,Revenue,Agency Staff,Human Resources
http://thanet.gov.uk/supplierspend,Thanet District Council,15/03/2016,404265,786.05,,Buckingham Futures Limited,BUC010,Community Services,Revenue,Agency Staff,Human Resources
http://thanet.gov.uk/supplierspend,Thanet District Council,15/03/2016,404266,696.3,,Buckingham Futures Limited,BUC010,Community Services,Revenue,Agency Staff,Human Resources
http://thanet.gov.uk/supplierspend,Thanet District Council,15/03/2016,404267,1296.25,,Buckingham Futures Limited,BUC010,Community Services,Revenue,Agency Staff,Human Resources
http://thanet.gov.uk/supplierspend,Thanet District Council,15/03/2016,404268,1338.75,,Buckingham Futures Limited,BUC010,Community Services,Revenue,Agency Staff,Human Resources
http://thanet.gov.uk/supplierspend,Thanet District Council,15/03/2016,403808,1454.8,,Canon (Uk) Ltd,CAN021,Corporate Resources and S151,Revenue,"Equip, Furniture And Materials",Facilities And Management Serv
http://thanet.gov.uk/supplierspend,Thanet District Council,15/03/2016,404216,220,,Canterbury City Council,CAN004,Corporate Governance,Revenue,"Print, Stat And Gen Off Exps",Various Cats - Public Sector
http://thanet.gov.uk/supplierspend,Thanet District Council,15/03/2016,404360,1495,,Canterbury City Council,CAN004,Corporate Governance,Revenue,Training,Various Cats - Public Sector
http://thanet.gov.uk/supplierspend,Thanet District Council,15/03/2016,403860,9500,,Capita Treasury Solutions Limited,CAP012,Corporate Resources and S151,Revenue,Services,Financial Services
http://thanet.gov.uk/supplierspend,Thanet District Council,15/03/2016,404313,2510,,Civica Uk Ltd,CIV003,East Kent Shared Services,Revenue,Expenses,ICT
http://thanet.gov.uk/supplierspend,Thanet District Council,15/03/2016,404314,750,,Civica Uk Ltd,CIV003,East Kent Shared Services,Revenue,Communications & Computing,ICT
http://thanet.gov.uk/supplierspend,Thanet District Council,15/03/2016,404439,3180,,Cloud Technology Solutions Ltd,CLO006,East Kent Shared Services,Revenue,Services,ICT
http://thanet.gov.uk/supplierspend,Thanet District Council,15/03/2016,403183,2000,,Coastal Publications,COA018,Corporate Resources and S151,Revenue,Miscellaneous Expenses,Arts And Leisure Services
http://thanet.gov.uk/supplierspend,Thanet District Council,15/03/2016,403302,513.86,,Commercial Services Trading Ltd,COM048,Operational Services,Revenue,"Equip, Furniture And Materials",Various Cats - Public Sector
http://thanet.gov.uk/supplierspend,Thanet District Council,15/03/2016,403303,512.41,,Commercial Services Trading Ltd,COM048,Operational Services,Revenue,"Equip, Furniture And Materials",Various Cats - Public Sector
http://thanet.gov.uk/supplierspend,Thanet District Council,15/03/2016,403304,236.18,,Commercial Services Trading Ltd,COM048,Operational Services,Revenue,"Equip, Furniture And Materials",Various Cats - Public Sector
http://thanet.gov.uk/supplierspend,Thanet District Council,15/03/2016,403232,500,,David Case,CAS012,Community Services,Revenue,"Print, Stat And Gen Off Exps",Facilities And Management Serv
http://thanet.gov.uk/supplierspend,Thanet District Council,15/03/2016,404250,341.55,,Dennis Eagle Ltd,DEN005,Operational Services,Revenue,Direct Transport Costs,Vehicle Management
http://thanet.gov.uk/supplierspend,Thanet District Council,15/03/2016,403876,1760,,Disclosure And Barring Service,DIS017,Community Services,Revenue,"Equip, Furniture And Materials",Human Resources
http://thanet.gov.uk/supplierspend,Thanet District Council,15/03/2016,404342,4600,,Dolphin Lifts Kent,DOL003,Corporate Resources and S151,Balance Sheet,Capital Exp-Non Council Assets,Grants
http://thanet.gov.uk/supplierspend,Thanet District Council,15/03/2016,404262,2075,,Dr R K Chhabra,CHH001,Operational Services,Revenue,Services,Cemetery And Crematorium
http://thanet.gov.uk/supplierspend,Thanet District Council,15/03/2016,403752,498.68,,E Saunders Margate Ltd,SAU001,Operational Services,Revenue,"Repairs,  Alter & Mtce - Build",Construction-Repair And Maint
http://thanet.gov.uk/supplierspend,Thanet District Council,15/03/2016,401583,306.79,,Edf Energy Customers Plc,EDF004,Operational Services,Revenue,Energy Costs,Utilities
http://thanet.gov.uk/supplierspend,Thanet District Council,15/03/2016,401922,1257.8,,Edf Energy Customers Plc,EDF004,Operational Services,Revenue,Energy Costs,Utilities
http://thanet.gov.uk/supplierspend,Thanet District Council,15/03/2016,404227,-306.79,,Edf Energy Customers Plc,EDF004,Operational Services,Revenue,Energy Costs,Utilities
http://thanet.gov.uk/supplierspend,Thanet District Council,15/03/2016,404400,2304.58,,Edf Energy Customers Plc,EDF004,Operational Services,Revenue,Energy Costs,Utilities
http://thanet.gov.uk/supplierspend,Thanet District Council,15/03/2016,404437,-1257.8,,Edf Energy Customers Plc,EDF004,Operational Services,Revenue,Energy Costs,Utilities
http://thanet.gov.uk/supplierspend,Thanet District Council,15/03/2016,402737,1242.12,,Electoral Reform Services,ELE010,Corporate Governance,Revenue,"Print, Stat And Gen Off Exps",Facilities And Management Serv
http://thanet.gov.uk/supplierspend,Thanet District Council,15/03/2016,403227,295.96,,Emma Ball Ltd,BAL013,Community Services,Revenue,"Equip, Furniture And Materials",Stationery
http://thanet.gov.uk/supplierspend,Thanet District Council,15/03/2016,403848,1592,,Estuary Services Ltd,EST002,Operational Services,Revenue,Cont Hire & Operating Lease,Maritime Services
http://thanet.gov.uk/supplierspend,Thanet District Council,15/03/2016,404255,630.38,,Evergreen Landscaping Gardening Ltd,EVE004,Corporate Resources and S151,Revenue,"Repairs,  Alter & Mtce - Build",Horticultural
http://thanet.gov.uk/supplierspend,Thanet District Council,15/03/2016,404334,1010.66,,Family Mosaic Housing,FAM001,Corporate Resources and S151,Balance Sheet,Capital Exp-Non Council Assets,Housing Management
http://thanet.gov.uk/supplierspend,Thanet District Council,15/03/2016,404338,955.54,,Family Mosaic Housing,FAM001,Corporate Resources and S151,Balance Sheet,Capital Exp-Non Council Assets,Housing Management
http://thanet.gov.uk/supplierspend,Thanet District Council,15/03/2016,403943,812.19,,Forecourt Installation Services Ltd,FOR021,Operational Services,Revenue,"Repairs,  Alter & Mtce - Build",Maritime Services
http://thanet.gov.uk/supplierspend,Thanet District Council,15/03/2016,403944,2100,,Forecourt Installation Services Ltd,FOR021,Operational Services,Revenue,"Equip, Furniture And Materials",Maritime Services
http://thanet.gov.uk/supplierspend,Thanet District Council,15/03/2016,403821,2150,,Gas Contract Services Ltd,GAS004,Corporate Resources and S151,Balance Sheet,Repairs And Mtce Holding A/C,Construction-Repair And Maint
http://thanet.gov.uk/supplierspend,Thanet District Council,15/03/2016,403861,793.6,,Gefco Uk Limited,GEF001,Operational Services,Revenue,Miscellaneous Expenses,Financial Services
http://thanet.gov.uk/supplierspend,Thanet District Council,15/03/2016,403863,1441.2,,Gefco Uk Limited,GEF001,Operational Services,Revenue,Miscellaneous Expenses,Financial Services
http://thanet.gov.uk/supplierspend,Thanet District Council,15/03/2016,403870,216.65,,Goodwins,GOO001,Operational Services,Revenue,"Equip, Furniture And Materials",Horticultural
http://thanet.gov.uk/supplierspend,Thanet District Council,15/03/2016,403702,2700,,Haymarket Media Group Ltd,HAY018,Community Services,Revenue,Advertising Expenses,Financial Services
http://thanet.gov.uk/supplierspend,Thanet District Council,15/03/2016,404513,710,,Home Front Bus,HOM017,Community Services,Revenue,"Equip, Furniture And Materials",Arts And Leisure Services
http://thanet.gov.uk/supplierspend,Thanet District Council,15/03/2016,403856,3132.78,,Hr Go (Kent) Ltd,HRG001,Operational Services,Revenue,Agency Staff,Human Resources
http://thanet.gov.uk/supplierspend,Thanet District Council,15/03/2016,403857,466.1,,Hr Go (Kent) Ltd,HRG001,Community Services,Revenue,Agency Staff,Human Resources
http://thanet.gov.uk/supplierspend,Thanet District Council,15/03/2016,404145,2235.58,,Hr Go (Kent) Ltd,HRG001,Operational Services,Revenue,Agency Staff,Human Resources
http://thanet.gov.uk/supplierspend,Thanet District Council,15/03/2016,404146,9828.92,,Hr Go (Kent) Ltd,HRG001,Operational Services,Revenue,Agency Staff,Human Resources
http://thanet.gov.uk/supplierspend,Thanet District Council,15/03/2016,404325,344.86,,Hr Go (Kent) Ltd,HRG001,Operational Services,Revenue,Agency Staff,Human Resources
http://thanet.gov.uk/supplierspend,Thanet District Council,15/03/2016,404326,1130.72,,Hr Go (Kent) Ltd,HRG001,Operational Services,Revenue,Agency Staff,Human Resources
http://thanet.gov.uk/supplierspend,Thanet District Council,15/03/2016,404327,436.6,,Hr Go (Kent) Ltd,HRG001,Community Services,Revenue,Agency Staff,Human Resources
http://thanet.gov.uk/supplierspend,Thanet District Council,15/03/2016,404328,1159.52,,Hr Go (Kent) Ltd,HRG001,Operational Services,Revenue,Agency Staff,Human Resources
http://thanet.gov.uk/supplierspend,Thanet District Council,15/03/2016,404330,1824.47,,Hr Go (Kent) Ltd,HRG001,Operational Services,Revenue,Agency Staff,Human Resources
http://thanet.gov.uk/supplierspend,Thanet District Council,15/03/2016,404331,486.55,,Hr Go (Kent) Ltd,HRG001,Operational Services,Revenue,Agency Staff,Human Resources
http://thanet.gov.uk/supplierspend,Thanet District Council,15/03/2016,404270,500,,Hse Training Ltd,HSE002,Operational Services,Revenue,"Equip, Furniture And Materials",Human Resources
http://thanet.gov.uk/supplierspend,Thanet District Council,15/03/2016,403935,331.49,,Imserv Europe Ltd,IMS002,Operational Services,Revenue,Energy Costs,Utilities
http://thanet.gov.uk/supplierspend,Thanet District Council,15/03/2016,404010,11211.42,,Jacobs U.K.Limited,JAC014,Corporate Resources and S151,Balance Sheet,Other Land And Buildings-Hra,Consultancy
http://thanet.gov.uk/supplierspend,Thanet District Council,15/03/2016,403970,1000,,Jgp Resourcing Ltd,JGP001,Community Services,Revenue,Advertising Expenses,Human Resources
http://thanet.gov.uk/supplierspend,Thanet District Council,15/03/2016,402895,540,,Jik Software Ltd,JIK001,Corporate Resources and S151,Revenue,Advertising Expenses,Facilities And Management Serv
http://thanet.gov.uk/supplierspend,Thanet District Council,15/03/2016,404336,1045.7,,John Gale,GAL001,Corporate Resources and S151,Balance Sheet,Capital Exp-Non Council Assets,Grants
http://thanet.gov.uk/supplierspend,Thanet District Council,15/03/2016,404339,773.3,,John Gale,GAL001,Corporate Resources and S151,Balance Sheet,Capital Exp-Non Council Assets,Grants
http://thanet.gov.uk/supplierspend,Thanet District Council,15/03/2016,404289,6410,,Keep Britain Tidy,KEE011,Operational Services,Revenue,"Equip, Furniture And Materials",Human Resources
http://thanet.gov.uk/supplierspend,Thanet District Council,15/03/2016,404293,365.28,,Kelway Ltd,KEL003,East Kent Shared Services,Revenue,Communications & Computing,ICT
http://thanet.gov.uk/supplierspend,Thanet District Council,15/03/2016,403947,13530.08,,Kent County Council,KCC002,Corporate Resources and S151,Revenue,Communications & Computing,Various Cats - Public Sector
http://thanet.gov.uk/supplierspend,Thanet District Council,15/03/2016,404182,7242.95,,Kent County Council (Kcs),KCC003,Corporate Resources and S151,Revenue,Energy Costs,Facilities And Management Serv
http://thanet.gov.uk/supplierspend,Thanet District Council,15/03/2016,404183,4976.17,,Kent County Council (Kcs),KCC003,Operational Services,Revenue,Energy Costs,Facilities And Management Serv
http://thanet.gov.uk/supplierspend,Thanet District Council,15/03/2016,404236,9673.18,,Kent County Council (Kcs),KCC003,Operational Services,Revenue,Energy Costs,Facilities And Management Serv
http://thanet.gov.uk/supplierspend,Thanet District Council,15/03/2016,404271,9745.5,,Kent County Council (Kcs),KCC003,Community Services,Revenue,Energy Costs,Facilities And Management Serv
http://thanet.gov.uk/supplierspend,Thanet District Council,15/03/2016,404291,317.1,,Kent County Council (Kcs),KCC003,Operational Services,Revenue,"Repairs,  Alter & Mtce - Build",Facilities And Management Serv
http://thanet.gov.uk/supplierspend,Thanet District Council,15/03/2016,404311,1990.79,,Kent County Council (Kcs),KCC003,Operational Services,Revenue,Energy Costs,Facilities And Management Serv
http://thanet.gov.uk/supplierspend,Thanet District Council,15/03/2016,404317,290.05,,Kent County Council (Kcs),KCC003,Corporate Resources and S151,Revenue,Energy Costs,Facilities And Management Serv
http://thanet.gov.uk/supplierspend,Thanet District Council,15/03/2016,404318,1422.26,,Kent County Council (Kcs),KCC003,Corporate Resources and S151,Revenue,Energy Costs,Facilities And Management Serv
http://thanet.gov.uk/supplierspend,Thanet District Council,15/03/2016,404320,505.88,,Kent County Council (Kcs),KCC003,Operational Services,Revenue,Energy Costs,Facilities And Management Serv
http://thanet.gov.uk/supplierspend,Thanet District Council,15/03/2016,404321,1348.1,,Kent County Council (Kcs),KCC003,Corporate Resources and S151,Revenue,Energy Costs,Facilities And Management Serv
http://thanet.gov.uk/supplierspend,Thanet District Council,15/03/2016,404322,1238.87,,Kent County Council (Kcs),KCC003,Community Services,Revenue,Energy Costs,Facilities And Management Serv
http://thanet.gov.uk/supplierspend,Thanet District Council,15/03/2016,404323,785.55,,Kent County Council (Kcs),KCC003,Operational Services,Revenue,Energy Costs,Facilities And Management Serv
http://thanet.gov.uk/supplierspend,Thanet District Council,15/03/2016,404507,1633.85,,Kent County Council (Kcs),KCC003,Operational Services,Revenue,"Equip, Furniture And Materials",Facilities And Management Serv
http://thanet.gov.uk/supplierspend,Thanet District Council,15/03/2016,403660,300,,Km Media Group Limited,KMM001,Community Services,Revenue,Miscellaneous Expenses,Facilities And Management Serv
http://thanet.gov.uk/supplierspend,Thanet District Council,15/03/2016,403670,983.15,,Km Media Group Limited,KMM001,Corporate Resources and S151,Revenue,Miscellaneous Expenses,Facilities And Management Serv
http://thanet.gov.uk/supplierspend,Thanet District Council,15/03/2016,404316,395,,Larac,LAR001,Operational Services,Revenue,"Print, Stat And Gen Off Exps",Financial Services
http://thanet.gov.uk/supplierspend,Thanet District Council,15/03/2016,404189,3303.04,,Level 3 Communications (Uk) Ltd,LEV005,Corporate Resources and S151,Balance Sheet,Telephone Holding Account,ICT
http://thanet.gov.uk/supplierspend,Thanet District Council,15/03/2016,404009,654.82,,Ling Metals Limited,LIN004,Operational Services,Revenue,Cleaning & Domestic Supplies,Environmental Services
http://thanet.gov.uk/supplierspend,Thanet District Council,15/03/2016,404347,341,,Lisa'S Helium Balloons & Dec Serv,LIS003,Community Services,Revenue,"Equip, Furniture And Materials",Arts And Leisure Services
http://thanet.gov.uk/supplierspend,Thanet District Council,15/03/2016,404301,1325.34,,Lister Wilder Limited,LIS002,Operational Services,Revenue,"Equip, Furniture And Materials",Horticultural
http://thanet.gov.uk/supplierspend,Thanet District Council,15/03/2016,403958,3840,,Local Government Futures Ltd,LOC013,Corporate Resources and S151,Revenue,Grants & Subscriptions,Consultancy
http://thanet.gov.uk/supplierspend,Thanet District Council,15/03/2016,403397,270,,M D Electrics,MDE001,Corporate Resources and S151,Revenue,"Repairs,  Alter & Mtce - Build",Building Construction Material
http://thanet.gov.uk/supplierspend,Thanet District Council,15/03/2016,404217,259.96,,Machine Mart Ltd,MAC003,Operational Services,Revenue,"Equip, Furniture And Materials",Vehicle Management
http://thanet.gov.uk/supplierspend,Thanet District Council,15/03/2016,403695,3950,,Mag:Net Solutions Limited,MAG005,East Kent Shared Services,Revenue,Cont To Prov - Supplies/Serv,ICT
http://thanet.gov.uk/supplierspend,Thanet District Council,15/03/2016,404172,276.7,,Magnartism Ltd,MAG006,Community Services,Revenue,"Equip, Furniture And Materials",Stationery
http://thanet.gov.uk/supplierspend,Thanet District Council,15/03/2016,402879,280,,Mama Feelgoods,MAM004,Community Services,Revenue,Rents,Facilities And Management Serv
http://thanet.gov.uk/supplierspend,Thanet District Council,15/03/2016,403543,1800,,Maxwells Grounds Maintenance Ltd,MAX002,Operational Services,Revenue,"Repairs,  Alter & Mtce - Build",Construction-Repair And Maint
http://thanet.gov.uk/supplierspend,Thanet District Council,15/03/2016,403956,214.29,,Mears Ltd,MEA003,Corporate Resources and S151,Revenue,"Repairs,  Alter & Mtce - Build",Construction-Repair And Maint
http://thanet.gov.uk/supplierspend,Thanet District Council,15/03/2016,404364,9010,,Modern Mindset Ltd,MOD004,Corporate Governance,Revenue,Communications & Computing,ICT
http://thanet.gov.uk/supplierspend,Thanet District Council,15/03/2016,403727,314.16,,Morgan Jones Ltd,MOR001,Corporate Governance,Revenue,Agency Staff,Human Resources
http://thanet.gov.uk/supplierspend,Thanet District Council,15/03/2016,403961,523.6,,Morgan Jones Ltd,MOR001,Corporate Resources and S151,Revenue,Agency Staff,Human Resources
http://thanet.gov.uk/supplierspend,Thanet District Council,15/03/2016,403962,553.52,,Morgan Jones Ltd,MOR001,Corporate Resources and S151,Revenue,Agency Staff,Human Resources
http://thanet.gov.uk/supplierspend,Thanet District Council,15/03/2016,403963,460.69,,Morgan Jones Ltd,MOR001,Community Services,Revenue,Agency Staff,Human Resources
http://thanet.gov.uk/supplierspend,Thanet District Council,15/03/2016,403964,219.72,,Morgan Jones Ltd,MOR001,Community Services,Revenue,Agency Staff,Human Resources
http://thanet.gov.uk/supplierspend,Thanet District Council,15/03/2016,403964,83.22,,Morgan Jones Ltd,MOR001,Corporate Governance,Revenue,Agency Staff,Human Resources
http://thanet.gov.uk/supplierspend,Thanet District Council,15/03/2016,404221,582.75,,Morgan Jones Ltd,MOR001,Community Services,Revenue,Agency Staff,Human Resources
http://thanet.gov.uk/supplierspend,Thanet District Council,15/03/2016,404222,587.18,,Morgan Jones Ltd,MOR001,Corporate Resources and S151,Revenue,Agency Staff,Human Resources
http://thanet.gov.uk/supplierspend,Thanet District Council,15/03/2016,404223,418.88,,Morgan Jones Ltd,MOR001,Corporate Resources and S151,Revenue,Agency Staff,Human Resources
http://thanet.gov.uk/supplierspend,Thanet District Council,15/03/2016,404224,314.16,,Morgan Jones Ltd,MOR001,Corporate Governance,Revenue,Agency Staff,Human Resources
http://thanet.gov.uk/supplierspend,Thanet District Council,15/03/2016,403969,575,,Mr Darren Osborne,OSB008,Corporate Resources and S151,Revenue,Cleaning & Domestic Supplies,Cleaning And Janitorial
http://thanet.gov.uk/supplierspend,Thanet District Council,15/03/2016,403969,47.5,,Mr Darren Osborne,OSB008,Community Services,Revenue,Cleaning & Domestic Supplies,Cleaning And Janitorial
http://thanet.gov.uk/supplierspend,Thanet District Council,15/03/2016,403969,30,,Mr Darren Osborne,OSB008,Operational Services,Revenue,Cleaning & Domestic Supplies,Cleaning And Janitorial
http://thanet.gov.uk/supplierspend,Thanet District Council,15/03/2016,404296,304.25,,Neopost Ltd,NEO003,Corporate Resources and S151,Revenue,"Equip, Furniture And Materials",Mail Services
http://thanet.gov.uk/supplierspend,Thanet District Council,15/03/2016,404343,4031,,Nick Dawson Designs Limited,DAW005,Corporate Resources and S151,Revenue,Fixtures & Fittings,Building Construction Material
http://thanet.gov.uk/supplierspend,Thanet District Council,15/03/2016,404366,566.24,,Nigel Kay Limited,NIG002,Corporate Resources and S151,Revenue,Expenses,Human Resources
http://thanet.gov.uk/supplierspend,Thanet District Council,15/03/2016,404366,566.24,,Nigel Kay Limited,NIG002,Corporate Resources and S151,Revenue,Training,Human Resources
http://thanet.gov.uk/supplierspend,Thanet District Council,15/03/2016,404341,6307,,Northwood Builders,NOR002,Corporate Resources and S151,Balance Sheet,Capital Exp-Non Council Assets,Grants
http://thanet.gov.uk/supplierspend,Thanet District Council,15/03/2016,404228,473.56,,Npower Direct Limited,NPO003,Community Services,Revenue,Energy Costs,Utilities
http://thanet.gov.uk/supplierspend,Thanet District Council,15/03/2016,404171,1314.93,,Ntm-Gb Limited,NTM001,Operational Services,Revenue,Direct Transport Costs,Vehicle Management
http://thanet.gov.uk/supplierspend,Thanet District Council,15/03/2016,403546,210,,Ocs Group Uk Ltd T/A Cannon,OCS003,Operational Services,Revenue,"Repairs,  Alter & Mtce - Build",Cleaning And Janitorial
http://thanet.gov.uk/supplierspend,Thanet District Council,15/03/2016,404144,3267.1,,Oracle Corporation Uk Ltd,ORA001,East Kent Shared Services,Revenue,Communications & Computing,ICT
http://thanet.gov.uk/supplierspend,Thanet District Council,15/03/2016,403835,603.75,,Osborne Richardson Limited,OSB009,Community Services,Revenue,Agency Staff,Human Resources
http://thanet.gov.uk/supplierspend,Thanet District Council,15/03/2016,404287,603.75,,Osborne Richardson Limited,OSB009,Community Services,Revenue,Agency Staff,Human Resources
http://thanet.gov.uk/supplierspend,Thanet District Council,15/03/2016,403820,6470.8,,Ostia Consulting Limited,OST001,Community Services,Revenue,Services,Consultancy
http://thanet.gov.uk/supplierspend,Thanet District Council,15/03/2016,404237,288.18,,Paul Nunn Limited,NUN002,Operational Services,Revenue,Direct Transport Costs,Vehicle Management
http://thanet.gov.uk/supplierspend,Thanet District Council,15/03/2016,404239,1117.99,,Peer 1 (Uk) Limited,PEE003,East Kent Shared Services,Revenue,Communications & Computing,ICT
http://thanet.gov.uk/supplierspend,Thanet District Council,15/03/2016,404269,6000,,Penna Plc,PEN008,Corporate Resources and S151,Revenue,Advertising Expenses,Human Resources
http://thanet.gov.uk/supplierspend,Thanet District Council,15/03/2016,403507,341.61,,Phoenix Software Ltd,PHO002,East Kent Shared Services,Revenue,Communications & Computing,ICT
http://thanet.gov.uk/supplierspend,Thanet District Council,15/03/2016,403796,500,,Pie Factory Music,PIE003,Community Services,Revenue,Services,Grants
http://thanet.gov.uk/supplierspend,Thanet District Council,15/03/2016,403797,1500,,Pie Factory Music,PIE003,Community Services,Revenue,Services,Grants
http://thanet.gov.uk/supplierspend,Thanet District Council,15/03/2016,403822,21882.8,,Profile Security Services Limited,PRO018,Operational Services,Revenue,Services,Facilities And Management Serv
http://thanet.gov.uk/supplierspend,Thanet District Council,15/03/2016,403823,688.32,,Profile Security Services Limited,PRO018,Operational Services,Revenue,Services,Facilities And Management Serv
http://thanet.gov.uk/supplierspend,Thanet District Council,15/03/2016,403831,825.46,,Puls Global Ltd,PUL006,Operational Services,Revenue,"Equip, Furniture And Materials",Facilities And Management Serv
http://thanet.gov.uk/supplierspend,Thanet District Council,15/03/2016,403890,385.6,,Quinneys Fencing & Sect Building Man,QUI001,Operational Services,Revenue,"Equip, Furniture And Materials",Building Construction Material
http://thanet.gov.uk/supplierspend,Thanet District Council,15/03/2016,403937,522,,Quinneys Fencing & Sect Building Man,QUI001,Operational Services,Revenue,"Repairs,  Alter & Mtce - Build",Building Construction Material
http://thanet.gov.uk/supplierspend,Thanet District Council,15/03/2016,404231,420,,R Cannon,CAN007,Operational Services,Revenue,Services,Maritime Services
http://thanet.gov.uk/supplierspend,Thanet District Council,15/03/2016,404232,450,,R Cannon,CAN007,Operational Services,Revenue,Services,Maritime Services
http://thanet.gov.uk/supplierspend,Thanet District Council,15/03/2016,403658,4657.5,,Ray Hole Architects Ltd,HOL037,Corporate Resources and S151,Balance Sheet,Other Land And Buildings-Hra,Construction-Repair And Maint
http://thanet.gov.uk/supplierspend,Thanet District Council,15/03/2016,403948,1320,,Reed Specialist Recruitment Ltd,REE015,East Kent Shared Services,Revenue,Agency Staff,Human Resources
http://thanet.gov.uk/supplierspend,Thanet District Council,15/03/2016,404297,350.23,,Rexel Uk Limited,REX003,Operational Services,Revenue,"Repairs,  Alter & Mtce - Build",Building Construction Material
http://thanet.gov.uk/supplierspend,Thanet District Council,15/03/2016,403296,1619.25,,Rigby Taylor Ltd,RIG002,Operational Services,Revenue,"Repairs,  Alter & Mtce - Build",Horticultural
http://thanet.gov.uk/supplierspend,Thanet District Council,15/03/2016,403295,245,,Rippleffect,RIP001,Community Services,Revenue,Communications & Computing,ICT
http://thanet.gov.uk/supplierspend,Thanet District Council,15/03/2016,403481,2083.33,,Sands Heritage Ltd,SAN025,Community Services,Revenue,Rents,Various Categories
http://thanet.gov.uk/supplierspend,Thanet District Council,15/03/2016,402887,1044,,Sellick Partnership Ltd,SEL011,Corporate Governance,Revenue,Agency Staff,Human Resources
http://thanet.gov.uk/supplierspend,Thanet District Council,15/03/2016,403489,828,,Sellick Partnership Ltd,SEL011,Corporate Governance,Revenue,Agency Staff,Human Resources
http://thanet.gov.uk/supplierspend,Thanet District Council,15/03/2016,403946,828,,Sellick Partnership Ltd,SEL011,Corporate Governance,Revenue,Agency Staff,Human Resources
http://thanet.gov.uk/supplierspend,Thanet District Council,15/03/2016,404457,540,,Sellick Partnership Ltd,SEL011,Corporate Governance,Revenue,Agency Staff,Human Resources
http://thanet.gov.uk/supplierspend,Thanet District Council,15/03/2016,404514,400,,Sharpe Pritchard Llp,SHA030,Corporate Governance,Revenue,Services,Legal Services
http://thanet.gov.uk/supplierspend,Thanet District Council,15/03/2016,404438,699,,Snap Surveys Ltd,SNA002,Corporate Resources and S151,Revenue,Communications & Computing,ICT
http://thanet.gov.uk/supplierspend,Thanet District Council,15/03/2016,403922,4.56,,Southern Electric,SEL007,Community Services,Revenue,Energy Costs,Utilities
http://thanet.gov.uk/supplierspend,Thanet District Council,15/03/2016,403922,474.89,,Southern Electric,SEL007,Operational Services,Revenue,Energy Costs,Utilities
http://thanet.gov.uk/supplierspend,Thanet District Council,15/03/2016,404153,298.44,,Southern Water,SWA001,Operational Services,Revenue,Water Services,Utilities
http://thanet.gov.uk/supplierspend,Thanet District Council,15/03/2016,404154,715.53,,Southern Water,SWA001,Operational Services,Revenue,Water Services,Utilities
http://thanet.gov.uk/supplierspend,Thanet District Council,15/03/2016,404155,866.98,,Southern Water,SWA001,Operational Services,Revenue,Water Services,Utilities
http://thanet.gov.uk/supplierspend,Thanet District Council,15/03/2016,404156,2172.76,,Southern Water,SWA001,Operational Services,Revenue,Water Services,Utilities
http://thanet.gov.uk/supplierspend,Thanet District Council,15/03/2016,403757,24892.27,,Swale Heating Ltd,SWA006,Corporate Resources and S151,Balance Sheet,Repairs And Mtce Holding A/C,Building Construction Material
http://thanet.gov.uk/supplierspend,Thanet District Council,15/03/2016,403770,2539.69,,Swale Heating Ltd,SWA006,Corporate Resources and S151,Balance Sheet,Repairs And Mtce Holding A/C,Building Construction Material
http://thanet.gov.uk/supplierspend,Thanet District Council,15/03/2016,403771,549,,Swale Heating Ltd,SWA006,Corporate Resources and S151,Balance Sheet,Repairs And Mtce Holding A/C,Building Construction Material
http://thanet.gov.uk/supplierspend,Thanet District Council,15/03/2016,403849,2898,,Teleshore (Uk) Ltd,TEL003,Operational Services,Revenue,"Repairs,  Alter & Mtce - Build",Cemetery And Crematorium
http://thanet.gov.uk/supplierspend,Thanet District Council,15/03/2016,403865,271.92,,Tfa Fuel Services Ltd,TFA003,Operational Services,Revenue,"Equip, Furniture And Materials",Utilities
http://thanet.gov.uk/supplierspend,Thanet District Council,15/03/2016,403809,265.5,,Thanet Waste Services Ltd,TWA001,Operational Services,Revenue,Private Contractors,Environmental Services
http://thanet.gov.uk/supplierspend,Thanet District Council,15/03/2016,403993,2500,,The Dreamland Trust,DRE003,Community Services,Revenue,Grants & Subscriptions,Arts And Leisure Services
http://thanet.gov.uk/supplierspend,Thanet District Council,15/03/2016,404162,300,,The Generation Group Enterprises Ltd,GEN012,Community Services,Revenue,Rents,Facilities And Management Serv
http://thanet.gov.uk/supplierspend,Thanet District Council,15/03/2016,403972,3099.98,,The Glenwood Hotel,GLE007,Community Services,Revenue,Services,Housing Management
http://thanet.gov.uk/supplierspend,Thanet District Council,15/03/2016,403973,3416.65,,The Glenwood Hotel,GLE007,Community Services,Revenue,Services,Housing Management
http://thanet.gov.uk/supplierspend,Thanet District Council,15/03/2016,403974,2687.49,,The Glenwood Hotel,GLE007,Community Services,Revenue,Services,Housing Management
http://thanet.gov.uk/supplierspend,Thanet District Council,15/03/2016,404149,870.25,,Thomson Reuters,THO043,Corporate Governance,Revenue,"Print, Stat And Gen Off Exps",Human Resources
http://thanet.gov.uk/supplierspend,Thanet District Council,15/03/2016,404340,1626,,Titan Lifts Ltd,TIT006,Corporate Resources and S151,Balance Sheet,Capital Exp-Non Council Assets,Facilities And Management Serv
http://thanet.gov.uk/supplierspend,Thanet District Council,15/03/2016,403519,958.5,,Tourism South East,TOU003,Community Services,Revenue,Services,Human Resources
http://thanet.gov.uk/supplierspend,Thanet District Council,15/03/2016,403805,950,,Tourism South East,TOU003,Community Services,Revenue,Services,Human Resources
http://thanet.gov.uk/supplierspend,Thanet District Council,15/03/2016,404335,11363,,Trueden Disability Adaptations Ltd,TRU012,Corporate Resources and S151,Balance Sheet,Capital Exp-Non Council Assets,Grants
http://thanet.gov.uk/supplierspend,Thanet District Council,15/03/2016,404206,161.34,,Veolia Es (Uk) Ltd,VEO001,Corporate Resources and S151,Balance Sheet,Rechargeable Works,Environmental Services
http://thanet.gov.uk/supplierspend,Thanet District Council,15/03/2016,404206,1535.34,,Veolia Es (Uk) Ltd,VEO001,Operational Services,Revenue,Cleaning & Domestic Supplies,Environmental Services
http://thanet.gov.uk/supplierspend,Thanet District Council,15/03/2016,403810,277.6,,Viridor Waste Management Ltd,VIR003,Corporate Resources and S151,Revenue,Cleaning & Domestic Supplies,Environmental Services
http://thanet.gov.uk/supplierspend,Thanet District Council,15/03/2016,403787,480,,W Brazil & Bros,BRA001,Operational Services,Revenue,Grounds Mtce Costs,Environmental Services
http://thanet.gov.uk/supplierspend,Thanet District Council,15/03/2016,403788,720,,W Brazil & Bros,BRA001,Operational Services,Revenue,Grounds Mtce Costs,Environmental Services
http://thanet.gov.uk/supplierspend,Thanet District Council,15/03/2016,403789,350,,W Brazil & Bros,BRA001,Operational Services,Revenue,Grounds Mtce Costs,Environmental Services
http://thanet.gov.uk/supplierspend,Thanet District Council,15/03/2016,403790,650,,W Brazil & Bros,BRA001,Operational Services,Revenue,Grounds Mtce Costs,Environmental Services
http://thanet.gov.uk/supplierspend,Thanet District Council,15/03/2016,403791,350,,W Brazil & Bros,BRA001,Operational Services,Revenue,Grounds Mtce Costs,Environmental Services
http://thanet.gov.uk/supplierspend,Thanet District Council,15/03/2016,404213,27633,,Wgh Ltd,WGH001,Community Services,Revenue,"Equip, Furniture And Materials",Consultancy
http://thanet.gov.uk/supplierspend,Thanet District Council,15/03/2016,403499,3150,,White'S Transport Limited,WHI043,Community Services,Revenue,Services,Facilities And Management Serv
http://thanet.gov.uk/supplierspend,Thanet District Council,16/03/2016,403200,325,,Bradstowe Chartered Surveyors,BRA027,Community Services,Revenue,Services,Facilities And Management Serv
http://thanet.gov.uk/supplierspend,Thanet District Council,16/03/2016,402890,1321.5,,Campbell Reith Hill Llp,CAM013,Corporate Resources and S151,Balance Sheet,Investment Property For Lease,Consultancy
http://thanet.gov.uk/supplierspend,Thanet District Council,16/03/2016,403659,2217.11,,Dha Planning Limited,DHA002,Community Services,Revenue,Services,Consultancy
http://thanet.gov.uk/supplierspend,Thanet District Council,16/03/2016,402749,350,,Maxwells Grounds Maintenance Ltd,MAX002,Operational Services,Revenue,"Repairs,  Alter & Mtce - Build",Construction-Repair And Maint
http://thanet.gov.uk/supplierspend,Thanet District Council,16/03/2016,402627,880,,Sharpe Pritchard Llp,SHA030,Community Services,Revenue,Services,Legal Services
http://thanet.gov.uk/supplierspend,Thanet District Council,16/03/2016,404697,380,,Weather2 Limited,WEA008,Operational Services,Revenue,Communications & Computing,Environmental Services
http://thanet.gov.uk/supplierspend,Thanet District Council,16/03/2016,404698,380,,Weather2 Limited,WEA008,Operational Services,Revenue,Communications & Computing,Environmental Services
http://thanet.gov.uk/supplierspend,Thanet District Council,17/03/2016,404260,7207.39,,Albion Fencing&Construction Kent Ltd,ALB005,Operational Services,Revenue,"Repairs,  Alter & Mtce - Build",Building Construction Material
http://thanet.gov.uk/supplierspend,Thanet District Council,17/03/2016,404797,16120.31,,Bramling Construction Ltd,BRA020,Corporate Resources and S151,Balance Sheet,Capital Exp-Non Council Assets,Grants
http://thanet.gov.uk/supplierspend,Thanet District Council,17/03/2016,404456,1830.25,,Canford Audio Plc,CAN008,Community Services,Revenue,"Equip, Furniture And Materials",Stationery
http://thanet.gov.uk/supplierspend,Thanet District Council,17/03/2016,404777,966.24,,Canon (Uk) Ltd,CAN021,Corporate Resources and S151,Revenue,"Print, Stat And Gen Off Exps",Facilities And Management Serv
http://thanet.gov.uk/supplierspend,Thanet District Council,17/03/2016,404483,2546.43,,Capita Business Services Ltd,CAP001,Corporate Resources and S151,Revenue,Communications & Computing,Human Resources
http://thanet.gov.uk/supplierspend,Thanet District Council,17/03/2016,404464,1100,,Centre For Strategy & Comm Limited,CEN007,Community Services,Revenue,Services,Human Resources
http://thanet.gov.uk/supplierspend,Thanet District Council,17/03/2016,404465,1100,,Centre For Strategy & Comm Limited,CEN007,Community Services,Revenue,Services,Human Resources
http://thanet.gov.uk/supplierspend,Thanet District Council,17/03/2016,404719,4270,,Cipfa Business Ltd,CIP008,Corporate Resources and S151,Revenue,Grants & Subscriptions,Financial Services
http://thanet.gov.uk/supplierspend,Thanet District Council,17/03/2016,404810,791.46,,Cliffsend Parish Council,CLI015,Community Services,Revenue,Grants & Subscriptions,Various Cats - Public Sector
http://thanet.gov.uk/supplierspend,Thanet District Council,17/03/2016,404795,224.17,,Davies Repairs,DAV019,Corporate Resources and S151,Revenue,"Equip, Furniture And Materials",Domestic Goods
http://thanet.gov.uk/supplierspend,Thanet District Council,17/03/2016,404799,750,,Discovery Planet Cic,DIS019,Community Services,Revenue,Grants & Subscriptions,Grants
http://thanet.gov.uk/supplierspend,Thanet District Council,17/03/2016,404804,5600,,Dolphin Lifts Kent,DOL003,Corporate Resources and S151,Balance Sheet,Capital Exp-Non Council Assets,Grants
http://thanet.gov.uk/supplierspend,Thanet District Council,17/03/2016,404729,900,,Electrical Lighting Solutions Ltd,ELE013,Operational Services,Revenue,"Repairs,  Alter & Mtce - Build",Building Construction Material
http://thanet.gov.uk/supplierspend,Thanet District Council,17/03/2016,404798,1765.64,,Family Mosaic Housing,FAM001,Corporate Resources and S151,Balance Sheet,Capital Exp-Non Council Assets,Housing Management
http://thanet.gov.uk/supplierspend,Thanet District Council,17/03/2016,404801,792.98,,Family Mosaic Housing,FAM001,Corporate Resources and S151,Balance Sheet,Capital Exp-Non Council Assets,Housing Management
http://thanet.gov.uk/supplierspend,Thanet District Council,17/03/2016,404805,1852,,Family Mosaic Housing,FAM001,Corporate Resources and S151,Balance Sheet,Capital Exp-Non Council Assets,Housing Management
http://thanet.gov.uk/supplierspend,Thanet District Council,17/03/2016,404806,357.52,,Family Mosaic Housing,FAM001,Corporate Resources and S151,Balance Sheet,Capital Exp-Non Council Assets,Housing Management
http://thanet.gov.uk/supplierspend,Thanet District Council,17/03/2016,404807,591.36,,Family Mosaic Housing,FAM001,Corporate Resources and S151,Balance Sheet,Capital Exp-Non Council Assets,Housing Management
http://thanet.gov.uk/supplierspend,Thanet District Council,17/03/2016,403942,0.11,,Forecourt Installation Services Ltd,FOR021,Corporate Resources and S151,Revenue,"Equip, Furniture And Materials",Maritime Services
http://thanet.gov.uk/supplierspend,Thanet District Council,17/03/2016,403942,11948.08,,Forecourt Installation Services Ltd,FOR021,Corporate Resources and S151,Balance Sheet,Plant And Equipment,Maritime Services
http://thanet.gov.uk/supplierspend,Thanet District Council,17/03/2016,402871,3000,,Gardiner & Theobald Llp,GAR020,Corporate Resources and S151,Balance Sheet,Investment Property For Lease,Consultancy
http://thanet.gov.uk/supplierspend,Thanet District Council,17/03/2016,404357,322.9,,H E Municipal Engineering Ltd,HEM003,Operational Services,Revenue,Direct Transport Costs,Vehicle Management
http://thanet.gov.uk/supplierspend,Thanet District Council,17/03/2016,404358,474.34,,H E Municipal Engineering Ltd,HEM003,Operational Services,Revenue,Direct Transport Costs,Vehicle Management
http://thanet.gov.uk/supplierspend,Thanet District Council,17/03/2016,404359,252.48,,H E Municipal Engineering Ltd,HEM003,Operational Services,Revenue,Direct Transport Costs,Vehicle Management
http://thanet.gov.uk/supplierspend,Thanet District Council,17/03/2016,404481,295,,Harvie Tyres Ltd,HAR033,Operational Services,Revenue,Direct Transport Costs,Vehicle Management
http://thanet.gov.uk/supplierspend,Thanet District Council,17/03/2016,404490,2000,,Heath Lambert Limited (Client Money),HEA011,Corporate Resources and S151,Balance Sheet,Insurance Holding Account,Financial Services
http://thanet.gov.uk/supplierspend,Thanet District Council,17/03/2016,404491,10000,,Heath Lambert Limited (Client Money),HEA011,Corporate Resources and S151,Balance Sheet,Insurance Holding Account,Financial Services
http://thanet.gov.uk/supplierspend,Thanet District Council,17/03/2016,404694,71925.72,,Heath Lambert Limited (Client Money),HEA011,Corporate Resources and S151,Balance Sheet,Insurance Holding Account,Financial Services
http://thanet.gov.uk/supplierspend,Thanet District Council,17/03/2016,404695,16425,,Heath Lambert Limited (Client Money),HEA011,Corporate Resources and S151,Balance Sheet,Insurance Holding Account,Financial Services
http://thanet.gov.uk/supplierspend,Thanet District Council,17/03/2016,403696,1000,,Hqn Limited,HQN001,Corporate Resources and S151,Revenue,Training,Human Resources
http://thanet.gov.uk/supplierspend,Thanet District Council,17/03/2016,404486,2231.92,,Hr Go (Kent) Ltd,HRG001,Operational Services,Revenue,Agency Staff,Human Resources
http://thanet.gov.uk/supplierspend,Thanet District Council,17/03/2016,404487,9834.69,,Hr Go (Kent) Ltd,HRG001,Operational Services,Revenue,Agency Staff,Human Resources
http://thanet.gov.uk/supplierspend,Thanet District Council,17/03/2016,404715,2326.75,,Idea,IDE003,Corporate Resources and S151,Revenue,Services,Consultancy
http://thanet.gov.uk/supplierspend,Thanet District Council,17/03/2016,404714,1750,,Imperial Civil Enforcement Sols Ltd,IMP008,Operational Services,Revenue,"Equip, Furniture And Materials",Street And Traffic Management
http://thanet.gov.uk/supplierspend,Thanet District Council,17/03/2016,404811,1250,,Island Events,ISL009,Community Services,Revenue,Grants & Subscriptions,Grants
http://thanet.gov.uk/supplierspend,Thanet District Council,17/03/2016,404802,649.7,,John Gale,GAL001,Corporate Resources and S151,Balance Sheet,Capital Exp-Non Council Assets,Grants
http://thanet.gov.uk/supplierspend,Thanet District Council,17/03/2016,404485,2642.32,,Kent County Council (Kcs),KCC003,Corporate Resources and S151,Revenue,"Equip, Furniture And Materials",Facilities And Management Serv
http://thanet.gov.uk/supplierspend,Thanet District Council,17/03/2016,404485,163.53,,Kent County Council (Kcs),KCC003,Operational Services,Revenue,"Equip, Furniture And Materials",Facilities And Management Serv
http://thanet.gov.uk/supplierspend,Thanet District Council,17/03/2016,404485,54.32,,Kent County Council (Kcs),KCC003,East Kent Shared Services,Revenue,"Equip, Furniture And Materials",Facilities And Management Serv
http://thanet.gov.uk/supplierspend,Thanet District Council,17/03/2016,404333,8274.06,,Lifestyle (Kent) Ltd,LIF008,Corporate Resources and S151,Balance Sheet,Capital Exp-Non Council Assets,Grants
http://thanet.gov.uk/supplierspend,Thanet District Council,17/03/2016,404337,7962.84,,Lifestyle (Kent) Ltd,LIF008,Corporate Resources and S151,Balance Sheet,Capital Exp-Non Council Assets,Grants
http://thanet.gov.uk/supplierspend,Thanet District Council,17/03/2016,404796,6608.22,,Lifestyle (Kent) Ltd,LIF008,Corporate Resources and S151,Balance Sheet,Capital Exp-Non Council Assets,Grants
http://thanet.gov.uk/supplierspend,Thanet District Council,17/03/2016,404793,490,,M D Electrics,MDE001,Operational Services,Revenue,"Repairs,  Alter & Mtce - Build",Building Construction Material
http://thanet.gov.uk/supplierspend,Thanet District Council,17/03/2016,404012,350,,Maxwells Grounds Maintenance Ltd,MAX002,Operational Services,Revenue,"Repairs,  Alter & Mtce - Build",Construction-Repair And Maint
http://thanet.gov.uk/supplierspend,Thanet District Council,17/03/2016,404365,226200,,Mr D M Littleboy,LIT007,Corporate Resources and S151,Balance Sheet,Heritage Assets,Arts And Leisure Services
http://thanet.gov.uk/supplierspend,Thanet District Council,17/03/2016,404469,350,,Nayland Rock Hotels Ltd,NAY002,Community Services,Revenue,Services,Housing Management
http://thanet.gov.uk/supplierspend,Thanet District Council,17/03/2016,404780,38467,,Parkeon Limited,PAR063,Operational Services,Revenue,"Equip, Furniture And Materials",Street And Traffic Management
http://thanet.gov.uk/supplierspend,Thanet District Council,17/03/2016,404800,775,,Pow Thanet,POW021,Community Services,Revenue,Grants & Subscriptions,Grants
http://thanet.gov.uk/supplierspend,Thanet District Council,17/03/2016,403553,10000,,Ramsgate Town Council,RAM031,Community Services,Revenue,Grants & Subscriptions,Various Cats - Public Sector
http://thanet.gov.uk/supplierspend,Thanet District Council,17/03/2016,404290,360,,Rippleffect,RIP001,Community Services,Revenue,Communications & Computing,ICT
http://thanet.gov.uk/supplierspend,Thanet District Council,17/03/2016,403689,4000,,Spider Project Management Ltd,SPI009,Corporate Resources and S151,Balance Sheet,Investment Property For Lease,Consultancy
http://thanet.gov.uk/supplierspend,Thanet District Council,17/03/2016,404165,772.3,,Standfast Burglar Alarm Co (Ek) Ltd,STA003,Corporate Resources and S151,Revenue,"Repairs,  Alter & Mtce - Build",Facilities And Management Serv
http://thanet.gov.uk/supplierspend,Thanet District Council,17/03/2016,404166,596.9,,Standfast Burglar Alarm Co (Ek) Ltd,STA003,Operational Services,Revenue,"Repairs,  Alter & Mtce - Build",Facilities And Management Serv
http://thanet.gov.uk/supplierspend,Thanet District Council,17/03/2016,404512,1700,,The Duncan & Graham Partnership Ltd,DUN015,Corporate Resources and S151,Balance Sheet,Council Dwellings,Consultancy
http://thanet.gov.uk/supplierspend,Thanet District Council,17/03/2016,404229,4207.5,,Topdesk Uk Limited,TOP011,East Kent Shared Services,Revenue,Communications & Computing,ICT
http://thanet.gov.uk/supplierspend,Thanet District Council,17/03/2016,404257,1514.05,,Tourism Works,TOU007,Community Services,Revenue,Services,Facilities And Management Serv
http://thanet.gov.uk/supplierspend,Thanet District Council,17/03/2016,404803,6497,,Trueden Disability Adaptations Ltd,TRU012,Corporate Resources and S151,Balance Sheet,Capital Exp-Non Council Assets,Grants
http://thanet.gov.uk/supplierspend,Thanet District Council,17/03/2016,404808,4928,,Trueden Disability Adaptations Ltd,TRU012,Corporate Resources and S151,Balance Sheet,Capital Exp-Non Council Assets,Grants
http://thanet.gov.uk/supplierspend,Thanet District Council,17/03/2016,404748,464.71,,Uk Power Networks (Operations) Ltd,UKP001,Operational Services,Revenue,"Repairs,  Alter & Mtce - Build",Utilities
http://thanet.gov.uk/supplierspend,Thanet District Council,17/03/2016,403815,267.33,,Viridor Waste Management Ltd,VIR003,Corporate Resources and S151,Revenue,Private Contractors,Environmental Services
http://thanet.gov.uk/supplierspend,Thanet District Council,17/03/2016,404475,219.12,,W G Burbridge,BUR016,Operational Services,Revenue,"Equip, Furniture And Materials",Building Construction Material
http://thanet.gov.uk/supplierspend,Thanet District Council,17/03/2016,404774,35000,,Your Leisure Kent Limited,YOU016,Community Services,Revenue,Grants & Subscriptions,Arts And Leisure Services
http://thanet.gov.uk/supplierspend,Thanet District Council,18/03/2016,405039,1354.33,,Electrical Lighting Solutions Ltd,ELE013,Operational Services,Revenue,"Repairs,  Alter & Mtce - Build",Building Construction Material
http://thanet.gov.uk/supplierspend,Thanet District Council,18/03/2016,404916,237004,,Kent & Medway Towns Fire Authority,KMT001,Corporate Resources and S151,Balance Sheet,Collection Fund - Preceptors,Various Cats - Public Sector
http://thanet.gov.uk/supplierspend,Thanet District Council,18/03/2016,404914,3663427,,Kent County Council,KCC022,Corporate Resources and S151,Balance Sheet,Collection Fund - Preceptors,Various Cats - Public Sector
http://thanet.gov.uk/supplierspend,Thanet District Council,18/03/2016,404915,495882,,Kent Police & Crime Commissioner,KPA003,Corporate Resources and S151,Balance Sheet,Collection Fund - Preceptors,Various Cats - Public Sector
http://thanet.gov.uk/supplierspend,Thanet District Council,18/03/2016,N/A,310,,REDACTED PERSONAL DATA,N/A,Corporate Resources and S151,Revenue,Grants & Subscriptions,Non Trade Payee
http://thanet.gov.uk/supplierspend,Thanet District Council,18/03/2016,N/A,7.82,,REDACTED PERSONAL DATA,N/A,Corporate Resources and S151,Revenue,Car Allowances,Non Trade Payee
http://thanet.gov.uk/supplierspend,Thanet District Council,18/03/2016,N/A,264.25,,REDACTED PERSONAL DATA,N/A,Community Services,Revenue,Expenses,Non Trade Payee
http://thanet.gov.uk/supplierspend,Thanet District Council,18/03/2016,N/A,138.24,,REDACTED PERSONAL DATA,N/A,Community Services,Revenue,Car Allowances,Non Trade Payee
http://thanet.gov.uk/supplierspend,Thanet District Council,18/03/2016,N/A,255.39,,REDACTED PERSONAL DATA,N/A,Community Services,Revenue,Car Allowances,Non Trade Payee
http://thanet.gov.uk/supplierspend,Thanet District Council,18/03/2016,N/A,345.98,,REDACTED PERSONAL DATA,N/A,Community Services,Revenue,Car Allowances,Non Trade Payee
http://thanet.gov.uk/supplierspend,Thanet District Council,18/03/2016,N/A,222.59,,REDACTED PERSONAL DATA,N/A,Community Services,Revenue,Car Allowances,Non Trade Payee
http://thanet.gov.uk/supplierspend,Thanet District Council,18/03/2016,N/A,524.29,,REDACTED PERSONAL DATA,N/A,Operational Services,Revenue,Car Allowances,Non Trade Payee
http://thanet.gov.uk/supplierspend,Thanet District Council,18/03/2016,N/A,374.66,,REDACTED PERSONAL DATA,N/A,Operational Services,Revenue,Car Allowances,Non Trade Payee
http://thanet.gov.uk/supplierspend,Thanet District Council,18/03/2016,N/A,445.97,,REDACTED PERSONAL DATA,N/A,Operational Services,Revenue,Car Allowances,Non Trade Payee
http://thanet.gov.uk/supplierspend,Thanet District Council,18/03/2016,N/A,308.5,,REDACTED PERSONAL DATA,N/A,East Kent Shared Services,Revenue,Car Allowances,Non Trade Payee
http://thanet.gov.uk/supplierspend,Thanet District Council,18/03/2016,N/A,612.3,,REDACTED PERSONAL DATA,N/A,East Kent Shared Services,Revenue,Car Allowances,Non Trade Payee
http://thanet.gov.uk/supplierspend,Thanet District Council,18/03/2016,N/A,283.51,,REDACTED PERSONAL DATA,N/A,East Kent Shared Services,Revenue,Car Allowances,Non Trade Payee
http://thanet.gov.uk/supplierspend,Thanet District Council,18/03/2016,N/A,263.2,,REDACTED PERSONAL DATA,N/A,East Kent Shared Services,Revenue,Car Allowances,Non Trade Payee
http://thanet.gov.uk/supplierspend,Thanet District Council,18/03/2016,N/A,735.07,,REDACTED PERSONAL DATA,N/A,East Kent Shared Services,Revenue,Car Allowances,Non Trade Payee
http://thanet.gov.uk/supplierspend,Thanet District Council,21/03/2016,403418,332.68,,Allstar Business Solutions Ltd,ALL038,Operational Services,Revenue,Direct Transport Costs,Vehicle Management
http://thanet.gov.uk/supplierspend,Thanet District Council,21/03/2016,404908,271.46,,Allstar Business Solutions Ltd,ALL038,Operational Services,Revenue,Direct Transport Costs,Vehicle Management
http://thanet.gov.uk/supplierspend,Thanet District Council,21/03/2016,404910,539.27,,Allstar Business Solutions Ltd,ALL038,Operational Services,Revenue,Direct Transport Costs,Vehicle Management
http://thanet.gov.uk/supplierspend,Thanet District Council,21/03/2016,404819,1034.99,,Co-Operative Bank Paypoint,COO018,Corporate Resources and S151,Revenue,Services,Financial Services
http://thanet.gov.uk/supplierspend,Thanet District Council,21/03/2016,404819,344.99,,Co-Operative Bank Paypoint,COO018,Community Services,Revenue,Services,Financial Services
http://thanet.gov.uk/supplierspend,Thanet District Council,21/03/2016,404830,247535.28,,Maidstone Borough Council,MAI002,Corporate Resources and S151,Balance Sheet,Collection Fund,Various Cats - Public Sector
http://thanet.gov.uk/supplierspend,Thanet District Council,21/03/2016,404830,684398.4,,Maidstone Borough Council,MAI002,Corporate Resources and S151,Balance Sheet,Collection Fund,Various Cats - Public Sector
http://thanet.gov.uk/supplierspend,Thanet District Council,21/03/2016,404838,247535.28,,Maidstone Borough Council,MAI002,Corporate Resources and S151,Balance Sheet,Collection Fund,Various Cats - Public Sector
http://thanet.gov.uk/supplierspend,Thanet District Council,21/03/2016,404838,684398.4,,Maidstone Borough Council,MAI002,Corporate Resources and S151,Balance Sheet,Collection Fund,Various Cats - Public Sector
http://thanet.gov.uk/supplierspend,Thanet District Council,21/03/2016,404831,600,,Nat West Bank,NWE001,Corporate Resources and S151,Revenue,Services,Various Categories
http://thanet.gov.uk/supplierspend,Thanet District Council,21/03/2016,404837,260.66,,Nat West Bank,NWE001,Corporate Resources and S151,Revenue,Services,Various Categories
http://thanet.gov.uk/supplierspend,Thanet District Council,21/03/2016,404828,63554.36,,Public Works Loan Board,PWL001,Corporate Resources and S151,Balance Sheet,Debit Interest And Expenses,Investments And Loans
http://thanet.gov.uk/supplierspend,Thanet District Council,21/03/2016,404839,860.78,,Santander,SAN017,Corporate Resources and S151,Revenue,Services,Various Categories
http://thanet.gov.uk/supplierspend,Thanet District Council,21/03/2016,404839,286.93,,Santander,SAN017,Community Services,Revenue,Services,Various Categories
http://thanet.gov.uk/supplierspend,Thanet District Council,21/03/2016,404840,612.02,,Santander,SAN017,Corporate Resources and S151,Revenue,Services,Various Categories
http://thanet.gov.uk/supplierspend,Thanet District Council,21/03/2016,404906,-220210,,Secretary Of State,SEC003,Corporate Resources and S151,Revenue,Revenue Financing,Government Agencies
http://thanet.gov.uk/supplierspend,Thanet District Council,21/03/2016,404906,1185738,,Secretary Of State,SEC003,Corporate Resources and S151,Balance Sheet,Collection Fund,Government Agencies
http://thanet.gov.uk/supplierspend,Thanet District Council,21/03/2016,404821,1428.4,,Worldpay Ltd,WOR008,Corporate Resources and S151,Revenue,Services,Financial Services
http://thanet.gov.uk/supplierspend,Thanet District Council,21/03/2016,404832,1682.19,,Worldpay Ltd,WOR008,Corporate Resources and S151,Revenue,Services,Financial Services
http://thanet.gov.uk/supplierspend,Thanet District Council,21/03/2016,404835,245.91,,Worldpay Ltd,WOR008,Corporate Resources and S151,Revenue,Services,Financial Services
http://thanet.gov.uk/supplierspend,Thanet District Council,22/03/2016,404258,2700,,A2b Technology (Uk) Ltd,A2B001,Corporate Resources and S151,Revenue,Communications & Computing,ICT
http://thanet.gov.uk/supplierspend,Thanet District Council,22/03/2016,404717,617.53,,Adecco Uk Ltd,ADE005,Chief Executive,Revenue,Agency Staff,Human Resources
http://thanet.gov.uk/supplierspend,Thanet District Council,22/03/2016,404492,1043.54,,Air Products Plc,AIR014,Operational Services,Revenue,"Equip, Furniture And Materials",Utilities
http://thanet.gov.uk/supplierspend,Thanet District Council,22/03/2016,404966,336,,Andrews & Elliott Limited,AND001,Operational Services,Revenue,"Repairs,  Alter & Mtce - Build",Cemetery And Crematorium
http://thanet.gov.uk/supplierspend,Thanet District Council,22/03/2016,404951,222.47,,Aspli Safety Limited,ASP005,Operational Services,Revenue,"Equip, Furniture And Materials",Maritime Services
http://thanet.gov.uk/supplierspend,Thanet District Council,22/03/2016,405113,251.6,,Ate (Uk) Limited,ANG014,Operational Services,Revenue,"Equip, Furniture And Materials",Vehicle Management
http://thanet.gov.uk/supplierspend,Thanet District Council,22/03/2016,404706,19114,,Bcs Building Contractor & Servs Ltd,BCS002,Corporate Resources and S151,Balance Sheet,Repairs And Mtce Holding A/C,Construction-Repair And Maint
http://thanet.gov.uk/supplierspend,Thanet District Council,22/03/2016,405186,10000,,Broadstairs & St Peters Town Council,BRO005,Community Services,Revenue,Grants & Subscriptions,Various Cats - Public Sector
http://thanet.gov.uk/supplierspend,Thanet District Council,22/03/2016,404500,225,,Bt Payment Services Ltd,BTE003,Operational Services,Revenue,Communications & Computing,ICT
http://thanet.gov.uk/supplierspend,Thanet District Council,22/03/2016,404924,855.7,,Buckingham Futures Limited,BUC010,Community Services,Revenue,Agency Staff,Human Resources
http://thanet.gov.uk/supplierspend,Thanet District Council,22/03/2016,403971,1842.16,,Cameron Consulting (Uk) Limited,CAM022,Corporate Resources and S151,Balance Sheet,Repairs And Mtce Holding A/C,Consultancy
http://thanet.gov.uk/supplierspend,Thanet District Council,22/03/2016,404478,1026.25,,Campbell Associates Limited,CAM011,Community Services,Revenue,Services,Environmental Services
http://thanet.gov.uk/supplierspend,Thanet District Council,22/03/2016,405121,328.89,,Canon (Uk) Ltd,CAN021,Community Services,Revenue,Services,Facilities And Management Serv
http://thanet.gov.uk/supplierspend,Thanet District Council,22/03/2016,404332,5811.67,,Canterbury Christ Church University,CAN006,Corporate Resources and S151,Revenue,Energy Costs,Various Categories
http://thanet.gov.uk/supplierspend,Thanet District Council,22/03/2016,404718,2785,,Civica Uk Ltd,CIV003,East Kent Shared Services,Revenue,Communications & Computing,ICT
http://thanet.gov.uk/supplierspend,Thanet District Council,22/03/2016,404921,55717.74,,Civica Uk Ltd,CIV003,East Kent Shared Services,Revenue,Communications & Computing,ICT
http://thanet.gov.uk/supplierspend,Thanet District Council,22/03/2016,404922,5750,,Civica Uk Ltd,CIV003,East Kent Shared Services,Revenue,Communications & Computing,ICT
http://thanet.gov.uk/supplierspend,Thanet District Council,22/03/2016,404923,2380,,Civica Uk Ltd,CIV003,East Kent Shared Services,Revenue,Expenses,ICT
http://thanet.gov.uk/supplierspend,Thanet District Council,22/03/2016,404959,4800,,Civica Uk Ltd,CIV003,East Kent Shared Services,Revenue,Communications & Computing,ICT
http://thanet.gov.uk/supplierspend,Thanet District Council,22/03/2016,405108,950,,Civica Uk Ltd,CIV003,East Kent Shared Services,Revenue,Communications & Computing,ICT
http://thanet.gov.uk/supplierspend,Thanet District Council,22/03/2016,405109,8155,,Civica Uk Ltd,CIV003,East Kent Shared Services,Revenue,Communications & Computing,ICT
http://thanet.gov.uk/supplierspend,Thanet District Council,22/03/2016,404756,662.94,,Computerland Uk Limited,COM045,Corporate Governance,Revenue,"Equip, Furniture And Materials",ICT
http://thanet.gov.uk/supplierspend,Thanet District Council,22/03/2016,405007,836.64,,Computerland Uk Limited,COM045,East Kent Shared Services,Revenue,Communications & Computing,ICT
http://thanet.gov.uk/supplierspend,Thanet District Council,22/03/2016,404995,680.25,,Corporate Direct (Europe) Ltd,COR006,East Kent Shared Services,Revenue,Communications & Computing,ICT
http://thanet.gov.uk/supplierspend,Thanet District Council,22/03/2016,404458,270.92,,Dennis Eagle Ltd,DEN005,Operational Services,Revenue,Direct Transport Costs,Vehicle Management
http://thanet.gov.uk/supplierspend,Thanet District Council,22/03/2016,404727,1161.8,,Dennis Eagle Ltd,DEN005,Operational Services,Revenue,Direct Transport Costs,Vehicle Management
http://thanet.gov.uk/supplierspend,Thanet District Council,22/03/2016,404745,570.26,,Dennis Eagle Ltd,DEN005,Operational Services,Revenue,Direct Transport Costs,Vehicle Management
http://thanet.gov.uk/supplierspend,Thanet District Council,22/03/2016,404746,237.28,,Dennis Eagle Ltd,DEN005,Operational Services,Revenue,Direct Transport Costs,Vehicle Management
http://thanet.gov.uk/supplierspend,Thanet District Council,22/03/2016,404970,280.42,,Dennis Eagle Ltd,DEN005,Operational Services,Revenue,Direct Transport Costs,Vehicle Management
http://thanet.gov.uk/supplierspend,Thanet District Council,22/03/2016,404971,675.09,,Dennis Eagle Ltd,DEN005,Operational Services,Revenue,Direct Transport Costs,Vehicle Management
http://thanet.gov.uk/supplierspend,Thanet District Council,22/03/2016,403189,4290.75,,Dha Planning Limited,DHA002,Community Services,Revenue,Services,Consultancy
http://thanet.gov.uk/supplierspend,Thanet District Council,22/03/2016,405183,2028.6,,District Surveyors Association Limited,DIS002,Community Services,Revenue,Grants & Subscriptions,Financial Services
http://thanet.gov.uk/supplierspend,Thanet District Council,22/03/2016,403377,920.7,,Dover District Council,DOV001,Chief Executive,Revenue,Services,Various Cats - Public Sector
http://thanet.gov.uk/supplierspend,Thanet District Council,22/03/2016,403378,490,,Dover District Council,DOV001,Chief Executive,Revenue,Services,Various Cats - Public Sector
http://thanet.gov.uk/supplierspend,Thanet District Council,22/03/2016,403975,370,,Dover District Council,DOV001,Corporate Resources and S151,Revenue,Training,Various Cats - Public Sector
http://thanet.gov.uk/supplierspend,Thanet District Council,22/03/2016,403976,480,,Dover District Council,DOV001,Corporate Resources and S151,Revenue,Training,Various Cats - Public Sector
http://thanet.gov.uk/supplierspend,Thanet District Council,22/03/2016,404960,316.68,,Dover District Council,DOV001,Operational Services,Revenue,Training,Various Cats - Public Sector
http://thanet.gov.uk/supplierspend,Thanet District Council,22/03/2016,404968,17217.51,,Dover District Council,DOV001,Corporate Resources and S151,Revenue,Services,Various Cats - Public Sector
http://thanet.gov.uk/supplierspend,Thanet District Council,22/03/2016,405025,547.01,,E Saunders Margate Ltd,SAU001,Corporate Resources and S151,Revenue,"Repairs,  Alter & Mtce - Build",Construction-Repair And Maint
http://thanet.gov.uk/supplierspend,Thanet District Council,22/03/2016,405025,108.84,,E Saunders Margate Ltd,SAU001,Community Services,Revenue,"Repairs,  Alter & Mtce - Build",Construction-Repair And Maint
http://thanet.gov.uk/supplierspend,Thanet District Council,22/03/2016,405097,296.65,,E Saunders Margate Ltd,SAU001,Operational Services,Revenue,"Repairs,  Alter & Mtce - Build",Construction-Repair And Maint
http://thanet.gov.uk/supplierspend,Thanet District Council,22/03/2016,404973,749.33,,Edf Energy Customers Plc,SEE014,Community Services,Revenue,Energy Costs,Utilities
http://thanet.gov.uk/supplierspend,Thanet District Council,22/03/2016,404728,299.5,,Electrical Lighting Solutions Ltd,ELE013,Operational Services,Revenue,"Repairs,  Alter & Mtce - Build",Building Construction Material
http://thanet.gov.uk/supplierspend,Thanet District Council,22/03/2016,404197,3285,,Esri (Uk) Ltd,ESR001,Corporate Resources and S151,Revenue,Communications & Computing,ICT
http://thanet.gov.uk/supplierspend,Thanet District Council,22/03/2016,404779,1035.1,,Essentra Packaging & Security Ltd,ESS005,Operational Services,Revenue,"Equip, Furniture And Materials",Maritime Services
http://thanet.gov.uk/supplierspend,Thanet District Council,22/03/2016,404281,380,,Evergreen Landscaping Gardening Ltd,EVE004,Corporate Resources and S151,Revenue,Grounds Mtce Costs,Horticultural
http://thanet.gov.uk/supplierspend,Thanet District Council,22/03/2016,404282,420,,Evergreen Landscaping Gardening Ltd,EVE004,Corporate Resources and S151,Revenue,Grounds Mtce Costs,Horticultural
http://thanet.gov.uk/supplierspend,Thanet District Council,22/03/2016,404283,555,,Evergreen Landscaping Gardening Ltd,EVE004,Corporate Resources and S151,Revenue,Grounds Mtce Costs,Horticultural
http://thanet.gov.uk/supplierspend,Thanet District Council,22/03/2016,404284,467,,Evergreen Landscaping Gardening Ltd,EVE004,Corporate Resources and S151,Revenue,Grounds Mtce Costs,Horticultural
http://thanet.gov.uk/supplierspend,Thanet District Council,22/03/2016,404285,623,,Evergreen Landscaping Gardening Ltd,EVE004,Corporate Resources and S151,Revenue,Grounds Mtce Costs,Horticultural
http://thanet.gov.uk/supplierspend,Thanet District Council,22/03/2016,404368,422,,Evergreen Landscaping Gardening Ltd,EVE004,Corporate Resources and S151,Revenue,Grounds Mtce Costs,Horticultural
http://thanet.gov.uk/supplierspend,Thanet District Council,22/03/2016,404755,6416.38,,Family Mosaic Housing,FAM001,Corporate Resources and S151,Balance Sheet,Repairs And Mtce Holding A/C,Housing Management
http://thanet.gov.uk/supplierspend,Thanet District Council,22/03/2016,405031,1166.44,,Family Mosaic Housing,FAM001,Corporate Resources and S151,Balance Sheet,Capital Exp-Non Council Assets,Housing Management
http://thanet.gov.uk/supplierspend,Thanet District Council,22/03/2016,405035,1183,,Family Mosaic Housing,FAM001,Corporate Resources and S151,Balance Sheet,Capital Exp-Non Council Assets,Housing Management
http://thanet.gov.uk/supplierspend,Thanet District Council,22/03/2016,405036,844.33,,Family Mosaic Housing,FAM001,Corporate Resources and S151,Balance Sheet,Capital Exp-Non Council Assets,Housing Management
http://thanet.gov.uk/supplierspend,Thanet District Council,22/03/2016,405040,812.28,,Family Mosaic Housing,FAM001,Corporate Resources and S151,Balance Sheet,Capital Exp-Non Council Assets,Housing Management
http://thanet.gov.uk/supplierspend,Thanet District Council,22/03/2016,405042,992.94,,Family Mosaic Housing,FAM001,Corporate Resources and S151,Balance Sheet,Capital Exp-Non Council Assets,Housing Management
http://thanet.gov.uk/supplierspend,Thanet District Council,22/03/2016,405094,1518.64,,Family Mosaic Housing,FAM001,Corporate Resources and S151,Balance Sheet,Capital Exp-Non Council Assets,Housing Management
http://thanet.gov.uk/supplierspend,Thanet District Council,22/03/2016,405096,812.16,,Family Mosaic Housing,FAM001,Corporate Resources and S151,Balance Sheet,Capital Exp-Non Council Assets,Housing Management
http://thanet.gov.uk/supplierspend,Thanet District Council,22/03/2016,403941,356.44,,Fox Property Solutions Limited,FOX010,Operational Services,Revenue,Cleaning & Domestic Supplies,Environmental Services
http://thanet.gov.uk/supplierspend,Thanet District Council,22/03/2016,404775,300,,Freeflow Limited,FRE010,Operational Services,Revenue,"Repairs,  Alter & Mtce - Build",Building Construction Material
http://thanet.gov.uk/supplierspend,Thanet District Council,22/03/2016,404356,3000,,Gardiner & Theobald Llp,GAR020,Corporate Resources and S151,Balance Sheet,Investment Property For Lease,Consultancy
http://thanet.gov.uk/supplierspend,Thanet District Council,22/03/2016,404716,709,,Groundsure Limited,GRO023,Corporate Resources and S151,Balance Sheet,Council Dwellings,Construction-Repair And Maint
http://thanet.gov.uk/supplierspend,Thanet District Council,22/03/2016,403693,12377.9,,Gva Grimley Limited,GVA001,Community Services,Revenue,Services,Consultancy
http://thanet.gov.uk/supplierspend,Thanet District Council,22/03/2016,405093,6767.96,,Hfd Construction,HFD001,Corporate Resources and S151,Balance Sheet,Capital Exp-Non Council Assets,Grants
http://thanet.gov.uk/supplierspend,Thanet District Council,22/03/2016,404452,570,,Holbrook Revell Electrical Ltd,HOL015,Operational Services,Revenue,"Repairs,  Alter & Mtce - Build",Building Construction Material
http://thanet.gov.uk/supplierspend,Thanet District Council,22/03/2016,404696,2500,,Housing Training & Consultancy Ltd,HOU016,Community Services,Revenue,Services,Human Resources
http://thanet.gov.uk/supplierspend,Thanet District Council,22/03/2016,404329,1461.32,,Hr Go (Kent) Ltd,HRG001,Operational Services,Revenue,Agency Staff,Human Resources
http://thanet.gov.uk/supplierspend,Thanet District Council,22/03/2016,404998,514.13,,Hr Go (Kent) Ltd,HRG001,Operational Services,Revenue,Agency Staff,Human Resources
http://thanet.gov.uk/supplierspend,Thanet District Council,22/03/2016,405000,486.55,,Hr Go (Kent) Ltd,HRG001,Operational Services,Revenue,Agency Staff,Human Resources
http://thanet.gov.uk/supplierspend,Thanet District Council,22/03/2016,405001,436.6,,Hr Go (Kent) Ltd,HRG001,Community Services,Revenue,Agency Staff,Human Resources
http://thanet.gov.uk/supplierspend,Thanet District Council,22/03/2016,405002,1898.58,,Hr Go (Kent) Ltd,HRG001,Operational Services,Revenue,Agency Staff,Human Resources
http://thanet.gov.uk/supplierspend,Thanet District Council,22/03/2016,405003,1130.72,,Hr Go (Kent) Ltd,HRG001,Operational Services,Revenue,Agency Staff,Human Resources
http://thanet.gov.uk/supplierspend,Thanet District Council,22/03/2016,405013,1103.07,,Hr Go (Kent) Ltd,HRG001,Operational Services,Revenue,Agency Staff,Human Resources
http://thanet.gov.uk/supplierspend,Thanet District Council,22/03/2016,405023,1628.96,,Hr Go (Kent) Ltd,HRG001,Operational Services,Revenue,Agency Staff,Human Resources
http://thanet.gov.uk/supplierspend,Thanet District Council,22/03/2016,404996,7802,,Kent County Council,KCC002,Community Services,Revenue,Grants & Subscriptions,Various Cats - Public Sector
http://thanet.gov.uk/supplierspend,Thanet District Council,22/03/2016,404278,3426.25,,Kent County Council (Kcs),KCC003,Operational Services,Revenue,Direct Transport Costs,Facilities And Management Serv
http://thanet.gov.uk/supplierspend,Thanet District Council,22/03/2016,404506,29050.11,,Kent County Council (Kcs),KCC003,Operational Services,Revenue,Direct Transport Costs,Facilities And Management Serv
http://thanet.gov.uk/supplierspend,Thanet District Council,22/03/2016,404707,2053.21,,Kent County Council (Kcs),KCC003,Corporate Resources and S151,Revenue,Energy Costs,Facilities And Management Serv
http://thanet.gov.uk/supplierspend,Thanet District Council,22/03/2016,404708,1808.25,,Kent County Council (Kcs),KCC003,Operational Services,Revenue,Energy Costs,Facilities And Management Serv
http://thanet.gov.uk/supplierspend,Thanet District Council,22/03/2016,404709,1396.56,,Kent County Council (Kcs),KCC003,Operational Services,Revenue,Energy Costs,Facilities And Management Serv
http://thanet.gov.uk/supplierspend,Thanet District Council,22/03/2016,404710,1583.54,,Kent County Council (Kcs),KCC003,Corporate Resources and S151,Revenue,Energy Costs,Facilities And Management Serv
http://thanet.gov.uk/supplierspend,Thanet District Council,22/03/2016,404711,1857.87,,Kent County Council (Kcs),KCC003,Operational Services,Revenue,Energy Costs,Facilities And Management Serv
http://thanet.gov.uk/supplierspend,Thanet District Council,22/03/2016,404712,1632.72,,Kent County Council (Kcs),KCC003,Operational Services,Revenue,Energy Costs,Facilities And Management Serv
http://thanet.gov.uk/supplierspend,Thanet District Council,22/03/2016,405098,595.16,,Kent Police & Crime Commissioner,KPC002,Community Services,Revenue,Grants & Subscriptions,Facilities And Management Serv
http://thanet.gov.uk/supplierspend,Thanet District Council,22/03/2016,405037,7036.08,,Lifestyle (Kent) Ltd,LIF008,Corporate Resources and S151,Balance Sheet,Capital Exp-Non Council Assets,Grants
http://thanet.gov.uk/supplierspend,Thanet District Council,22/03/2016,405038,6769.03,,Lifestyle (Kent) Ltd,LIF008,Corporate Resources and S151,Balance Sheet,Capital Exp-Non Council Assets,Grants
http://thanet.gov.uk/supplierspend,Thanet District Council,22/03/2016,405041,8241.21,,Lifestyle (Kent) Ltd,LIF008,Corporate Resources and S151,Balance Sheet,Capital Exp-Non Council Assets,Grants
http://thanet.gov.uk/supplierspend,Thanet District Council,22/03/2016,404997,2185,,M & P Marine Services,MPM001,Operational Services,Revenue,"Repairs,  Alter & Mtce - Build",Maritime Services
http://thanet.gov.uk/supplierspend,Thanet District Council,22/03/2016,405187,10000,,Margate Town Team Cic,MTO001,Community Services,Revenue,Grants & Subscriptions,Grants
http://thanet.gov.uk/supplierspend,Thanet District Council,22/03/2016,404987,850,,Maxwells Grounds Maintenance Ltd,MAX002,Operational Services,Revenue,"Repairs,  Alter & Mtce - Build",Construction-Repair And Maint
http://thanet.gov.uk/supplierspend,Thanet District Council,22/03/2016,403832,732.45,,Mears Ltd,MEA003,Corporate Resources and S151,Balance Sheet,Rechargeable Works,Construction-Repair And Maint
http://thanet.gov.uk/supplierspend,Thanet District Council,22/03/2016,403957,829.84,,Mears Ltd,MEA003,Corporate Resources and S151,Revenue,"Repairs,  Alter & Mtce - Build",Construction-Repair And Maint
http://thanet.gov.uk/supplierspend,Thanet District Council,22/03/2016,404447,6143.08,,Mears Ltd,MEA003,Corporate Resources and S151,Balance Sheet,Repairs And Mtce Holding A/C,Construction-Repair And Maint
http://thanet.gov.uk/supplierspend,Thanet District Council,22/03/2016,404448,7010.35,,Mears Ltd,MEA003,Corporate Resources and S151,Balance Sheet,Repairs And Mtce Holding A/C,Construction-Repair And Maint
http://thanet.gov.uk/supplierspend,Thanet District Council,22/03/2016,404449,7592.68,,Mears Ltd,MEA003,Corporate Resources and S151,Balance Sheet,Repairs And Mtce Holding A/C,Construction-Repair And Maint
http://thanet.gov.uk/supplierspend,Thanet District Council,22/03/2016,404450,3682.99,,Mears Ltd,MEA003,Corporate Resources and S151,Balance Sheet,Repairs And Mtce Holding A/C,Construction-Repair And Maint
http://thanet.gov.uk/supplierspend,Thanet District Council,22/03/2016,404451,8464.54,,Mears Ltd,MEA003,Corporate Resources and S151,Balance Sheet,Repairs And Mtce Holding A/C,Construction-Repair And Maint
http://thanet.gov.uk/supplierspend,Thanet District Council,22/03/2016,404917,3019.38,,Mears Ltd,MEA003,Corporate Resources and S151,Balance Sheet,Repairs And Mtce Holding A/C,Construction-Repair And Maint
http://thanet.gov.uk/supplierspend,Thanet District Council,22/03/2016,404918,4359.57,,Mears Ltd,MEA003,Corporate Resources and S151,Balance Sheet,Repairs And Mtce Holding A/C,Construction-Repair And Maint
http://thanet.gov.uk/supplierspend,Thanet District Council,22/03/2016,404919,14634.15,,Mears Ltd,MEA003,Corporate Resources and S151,Balance Sheet,Repairs And Mtce Holding A/C,Construction-Repair And Maint
http://thanet.gov.uk/supplierspend,Thanet District Council,22/03/2016,404920,30194.44,,Mears Ltd,MEA003,Corporate Resources and S151,Balance Sheet,Repairs And Mtce Holding A/C,Construction-Repair And Maint
http://thanet.gov.uk/supplierspend,Thanet District Council,22/03/2016,405153,15.23,,Mears Ltd,MEA003,Corporate Resources and S151,Revenue,"Repairs,  Alter & Mtce - Build",Construction-Repair And Maint
http://thanet.gov.uk/supplierspend,Thanet District Council,22/03/2016,404721,4035.35,,Med Clean South Ltd,MED015,Operational Services,Revenue,Cleaning & Domestic Supplies,Cleaning And Janitorial
http://thanet.gov.uk/supplierspend,Thanet District Council,22/03/2016,404721,0.03,,Med Clean South Ltd,MED015,Operational Services,Revenue,"Equip, Furniture And Materials",Cleaning And Janitorial
http://thanet.gov.uk/supplierspend,Thanet District Council,22/03/2016,404928,8715.25,,Midland Software Limited,MID013,East Kent Shared Services,Revenue,Communications & Computing,ICT
http://thanet.gov.uk/supplierspend,Thanet District Council,22/03/2016,404932,1141.7,,Midland Software Limited,MID013,Corporate Resources and S151,Balance Sheet,Plant And Equipment,ICT
http://thanet.gov.uk/supplierspend,Thanet District Council,22/03/2016,405078,500,,Millmead Childrens Ctr Prtnrship Ltd,MCC009,Community Services,Revenue,Grants & Subscriptions,Grants
http://thanet.gov.uk/supplierspend,Thanet District Council,22/03/2016,405087,1000,,Minster Village Show,MIN021,Community Services,Revenue,Grants & Subscriptions,Grants
http://thanet.gov.uk/supplierspend,Thanet District Council,22/03/2016,404980,480.38,,Morgan Jones Ltd,MOR001,Community Services,Revenue,Agency Staff,Human Resources
http://thanet.gov.uk/supplierspend,Thanet District Council,22/03/2016,404981,594.66,,Morgan Jones Ltd,MOR001,Corporate Resources and S151,Revenue,Agency Staff,Human Resources
http://thanet.gov.uk/supplierspend,Thanet District Council,22/03/2016,404982,523.6,,Morgan Jones Ltd,MOR001,Corporate Resources and S151,Revenue,Agency Staff,Human Resources
http://thanet.gov.uk/supplierspend,Thanet District Council,22/03/2016,405179,500,,Mr Paul Tapsell,TAP002,Community Services,Revenue,Services,Legal Services
http://thanet.gov.uk/supplierspend,Thanet District Council,22/03/2016,404725,1570,,Mr Philip Woolfe,WOO030,Operational Services,Revenue,Services,Legal Services
http://thanet.gov.uk/supplierspend,Thanet District Council,22/03/2016,404705,20000,,Neopost Limited Neofunds,NEO004,Corporate Resources and S151,Revenue,Communications & Computing,Mail Services
http://thanet.gov.uk/supplierspend,Thanet District Council,22/03/2016,404925,603.75,,Osborne Richardson Limited,OSB009,Community Services,Revenue,Agency Staff,Human Resources
http://thanet.gov.uk/supplierspend,Thanet District Council,22/03/2016,405032,5576,,Premiere Projects Limited,PRE022,Corporate Resources and S151,Balance Sheet,Capital Exp-Non Council Assets,Grants
http://thanet.gov.uk/supplierspend,Thanet District Council,22/03/2016,404173,629.06,,Probrand Ltd,PRO012,East Kent Shared Services,Revenue,Communications & Computing,ICT
http://thanet.gov.uk/supplierspend,Thanet District Council,22/03/2016,404993,270,,Probrand Ltd,PRO012,Operational Services,Revenue,Communications & Computing,ICT
http://thanet.gov.uk/supplierspend,Thanet District Council,22/03/2016,404994,335.78,,Probrand Ltd,PRO012,Operational Services,Revenue,Communications & Computing,ICT
http://thanet.gov.uk/supplierspend,Thanet District Council,22/03/2016,405120,3000,,Project Salus Cic,PRO033,Community Services,Revenue,Grants & Subscriptions,Human Resources
http://thanet.gov.uk/supplierspend,Thanet District Council,22/03/2016,405015,450,,R Cannon,CAN007,Operational Services,Revenue,Services,Maritime Services
http://thanet.gov.uk/supplierspend,Thanet District Council,22/03/2016,405080,840,,R Cannon,CAN007,Operational Services,Revenue,Services,Maritime Services
http://thanet.gov.uk/supplierspend,Thanet District Council,22/03/2016,404459,1320,,Reed Specialist Recruitment Ltd,REE015,East Kent Shared Services,Revenue,Agency Staff,Human Resources
http://thanet.gov.uk/supplierspend,Thanet District Council,22/03/2016,405111,1320,,Reed Specialist Recruitment Ltd,REE015,East Kent Shared Services,Revenue,Agency Staff,Human Resources
http://thanet.gov.uk/supplierspend,Thanet District Council,22/03/2016,404958,489.1,,Rigby Taylor Ltd,RIG002,Operational Services,Revenue,"Repairs,  Alter & Mtce - Build",Horticultural
http://thanet.gov.uk/supplierspend,Thanet District Council,22/03/2016,403711,2340,,Rippleffect,RIP001,Community Services,Revenue,Communications & Computing,ICT
http://thanet.gov.uk/supplierspend,Thanet District Council,22/03/2016,404957,1095,,South East Netting Limited,SOU016,Operational Services,Revenue,"Repairs,  Alter & Mtce - Build",Building Construction Material
http://thanet.gov.uk/supplierspend,Thanet District Council,22/03/2016,404935,4519.5,,South Of England Foundation,SOU022,Community Services,Revenue,Services,Arts And Leisure Services
http://thanet.gov.uk/supplierspend,Thanet District Council,22/03/2016,404379,2465.72,,Southern Electric,SEL007,Community Services,Revenue,Energy Costs,Utilities
http://thanet.gov.uk/supplierspend,Thanet District Council,22/03/2016,404402,2614.96,,Southern Electric,SEL007,Community Services,Revenue,Energy Costs,Utilities
http://thanet.gov.uk/supplierspend,Thanet District Council,22/03/2016,404498,898.15,,Southern Electric,SEL007,Community Services,Revenue,Energy Costs,Utilities
http://thanet.gov.uk/supplierspend,Thanet District Council,22/03/2016,404409,831.07,,Southern Water,SWA001,Operational Services,Revenue,Water Services,Utilities
http://thanet.gov.uk/supplierspend,Thanet District Council,22/03/2016,404410,1039.09,,Southern Water,SWA001,Operational Services,Revenue,Water Services,Utilities
http://thanet.gov.uk/supplierspend,Thanet District Council,22/03/2016,404412,2254.77,,Southern Water,SWA001,Operational Services,Revenue,Water Services,Utilities
http://thanet.gov.uk/supplierspend,Thanet District Council,22/03/2016,404413,440.27,,Southern Water,SWA001,Operational Services,Revenue,Water Services,Utilities
http://thanet.gov.uk/supplierspend,Thanet District Council,22/03/2016,404786,-396.74,,Southern Water,SWA001,Operational Services,Revenue,Water Services,Utilities
http://thanet.gov.uk/supplierspend,Thanet District Council,22/03/2016,404789,3445.69,,Southern Water,SWA001,Corporate Resources and S151,Revenue,Water Services,Utilities
http://thanet.gov.uk/supplierspend,Thanet District Council,22/03/2016,404790,2303.98,,Southern Water,SWA001,Corporate Resources and S151,Revenue,Water Services,Utilities
http://thanet.gov.uk/supplierspend,Thanet District Council,22/03/2016,404791,334.94,,Southern Water,SWA001,Operational Services,Revenue,Water Services,Utilities
http://thanet.gov.uk/supplierspend,Thanet District Council,22/03/2016,404792,1360.56,,Southern Water,SWA001,Operational Services,Revenue,Water Services,Utilities
http://thanet.gov.uk/supplierspend,Thanet District Council,22/03/2016,403842,25522.41,,Standage & Co Limited,STA058,Corporate Resources and S151,Balance Sheet,Council Dwellings,Construction-Repair And Maint
http://thanet.gov.uk/supplierspend,Thanet District Council,22/03/2016,403843,147390.53,,Standage & Co Limited,STA058,Corporate Resources and S151,Balance Sheet,Council Dwellings,Construction-Repair And Maint
http://thanet.gov.uk/supplierspend,Thanet District Council,22/03/2016,403844,16077.87,,Standage & Co Limited,STA058,Corporate Resources and S151,Balance Sheet,Council Dwellings,Construction-Repair And Maint
http://thanet.gov.uk/supplierspend,Thanet District Council,22/03/2016,403845,3941.07,,Standage & Co Limited,STA058,Corporate Resources and S151,Balance Sheet,Council Dwellings,Construction-Repair And Maint
http://thanet.gov.uk/supplierspend,Thanet District Council,22/03/2016,403846,27690.68,,Standage & Co Limited,STA058,Corporate Resources and S151,Balance Sheet,Council Dwellings,Construction-Repair And Maint
http://thanet.gov.uk/supplierspend,Thanet District Council,22/03/2016,405114,1990,,Stonegrove Facilities Management Ltd,STO026,Operational Services,Revenue,"Repairs,  Alter & Mtce - Build",Cemetery And Crematorium
http://thanet.gov.uk/supplierspend,Thanet District Council,22/03/2016,405088,415.8,,Templars Estates Ltd,TEM005,Corporate Resources and S151,Balance Sheet,Capital Exp-Non Council Assets,Grants
http://thanet.gov.uk/supplierspend,Thanet District Council,22/03/2016,405089,8004.96,,Templars Estates Ltd,TEM005,Corporate Resources and S151,Balance Sheet,Capital Exp-Non Council Assets,Grants
http://thanet.gov.uk/supplierspend,Thanet District Council,22/03/2016,405090,660.96,,Templars Estates Ltd,TEM005,Corporate Resources and S151,Balance Sheet,Capital Exp-Non Council Assets,Grants
http://thanet.gov.uk/supplierspend,Thanet District Council,22/03/2016,405091,415.8,,Templars Estates Ltd,TEM005,Corporate Resources and S151,Balance Sheet,Capital Exp-Non Council Assets,Grants
http://thanet.gov.uk/supplierspend,Thanet District Council,22/03/2016,405092,660.96,,Templars Estates Ltd,TEM005,Corporate Resources and S151,Balance Sheet,Capital Exp-Non Council Assets,Grants
http://thanet.gov.uk/supplierspend,Thanet District Council,22/03/2016,405106,815.48,,Tennant Uk Cleaning Solutions Ltd,TEN006,Operational Services,Revenue,Direct Transport Costs,Vehicle Management
http://thanet.gov.uk/supplierspend,Thanet District Council,22/03/2016,404950,722.48,,Terberg Matec Uk Limited,TER010,Operational Services,Revenue,Direct Transport Costs,Vehicle Management
http://thanet.gov.uk/supplierspend,Thanet District Council,22/03/2016,404302,17.83,,Tfa Fuel Services Ltd,TFA003,Operational Services,Revenue,Direct Transport Costs,Utilities
http://thanet.gov.uk/supplierspend,Thanet District Council,22/03/2016,404302,664.46,,Tfa Fuel Services Ltd,TFA003,Operational Services,Revenue,"Equip, Furniture And Materials",Utilities
http://thanet.gov.uk/supplierspend,Thanet District Council,22/03/2016,404700,15.81,,Tfa Fuel Services Ltd,TFA003,Operational Services,Revenue,Direct Transport Costs,Utilities
http://thanet.gov.uk/supplierspend,Thanet District Council,22/03/2016,404700,442.49,,Tfa Fuel Services Ltd,TFA003,Operational Services,Revenue,"Equip, Furniture And Materials",Utilities
http://thanet.gov.uk/supplierspend,Thanet District Council,22/03/2016,404733,2624.98,,The Glenwood Hotel,GLE007,Community Services,Revenue,Services,Housing Management
http://thanet.gov.uk/supplierspend,Thanet District Council,22/03/2016,404734,2745.83,,The Glenwood Hotel,GLE007,Community Services,Revenue,Services,Housing Management
http://thanet.gov.uk/supplierspend,Thanet District Council,22/03/2016,404736,3937.49,,The Glenwood Hotel,GLE007,Community Services,Revenue,Services,Housing Management
http://thanet.gov.uk/supplierspend,Thanet District Council,22/03/2016,405086,2500,,The Ramsgate Society Project Fund,RAM042,Community Services,Revenue,Grants & Subscriptions,Stationery
http://thanet.gov.uk/supplierspend,Thanet District Council,22/03/2016,404463,9740,,Thintech Ltd,THI009,East Kent Shared Services,Revenue,Communications & Computing,ICT
http://thanet.gov.uk/supplierspend,Thanet District Council,22/03/2016,405034,10745,,Titan Lifts Ltd,TIT006,Corporate Resources and S151,Balance Sheet,Capital Exp-Non Council Assets,Facilities And Management Serv
http://thanet.gov.uk/supplierspend,Thanet District Council,22/03/2016,405190,744.5,,Total Merchandise Ltd,TOT012,Community Services,Revenue,"Equip, Furniture And Materials",Stationery
http://thanet.gov.uk/supplierspend,Thanet District Council,22/03/2016,405095,12622,,Trueden Disability Adaptations Ltd,TRU012,Corporate Resources and S151,Balance Sheet,Capital Exp-Non Council Assets,Grants
http://thanet.gov.uk/supplierspend,Thanet District Council,22/03/2016,403786,250,,W Brazil & Bros,BRA001,Operational Services,Revenue,Services,Environmental Services
http://thanet.gov.uk/supplierspend,Thanet District Council,22/03/2016,404204,240,,W Brazil & Bros,BRA001,Corporate Resources and S151,Balance Sheet,Repairs And Mtce Holding A/C,Environmental Services
http://thanet.gov.uk/supplierspend,Thanet District Council,22/03/2016,404479,1018.44,,Westbrook Construction (Margate) Ltd,WES021,Operational Services,Revenue,"Repairs,  Alter & Mtce - Build",Various Categories
http://thanet.gov.uk/supplierspend,Thanet District Council,22/03/2016,404480,4263.68,,Westbrook Construction (Margate) Ltd,WES021,Operational Services,Revenue,"Repairs,  Alter & Mtce - Build",Various Categories
http://thanet.gov.uk/supplierspend,Thanet District Council,22/03/2016,405103,201.26,,Westbrook Construction (Margate) Ltd,WES021,Operational Services,Revenue,"Repairs,  Alter & Mtce - Build",Various Categories
http://thanet.gov.uk/supplierspend,Thanet District Council,22/03/2016,404931,432,,Wilks Head & Eve,WIL028,Operational Services,Revenue,Services,Consultancy
http://thanet.gov.uk/supplierspend,Thanet District Council,22/03/2016,405123,540,,Zen Internet Ltd,ZEN001,Community Services,Revenue,Communications & Computing,ICT
http://thanet.gov.uk/supplierspend,Thanet District Council,23/03/2016,405414,3355.79,,Nat West Bank,NWE001,Corporate Resources and S151,Revenue,Services,Various Categories
http://thanet.gov.uk/supplierspend,Thanet District Council,24/03/2016,405423,9565.31,,Bcs Building Contractor & Servs Ltd,BCS002,Corporate Resources and S151,Balance Sheet,Repairs And Mtce Holding A/C,Construction-Repair And Maint
http://thanet.gov.uk/supplierspend,Thanet District Council,24/03/2016,405351,1370.5,,Buckingham Futures Limited,BUC010,Community Services,Revenue,Agency Staff,Human Resources
http://thanet.gov.uk/supplierspend,Thanet District Council,24/03/2016,405352,955.2,,Buckingham Futures Limited,BUC010,Community Services,Revenue,Agency Staff,Human Resources
http://thanet.gov.uk/supplierspend,Thanet District Council,24/03/2016,405353,2356.13,,Buckingham Futures Limited,BUC010,Community Services,Revenue,Agency Staff,Human Resources
http://thanet.gov.uk/supplierspend,Thanet District Council,24/03/2016,405355,2346.75,,Buckingham Futures Limited,BUC010,Community Services,Revenue,Agency Staff,Human Resources
http://thanet.gov.uk/supplierspend,Thanet District Council,24/03/2016,405350,100,,Cliftonville Community Centre,CLI035,Community Services,Revenue,Catering,Facilities And Management Serv
http://thanet.gov.uk/supplierspend,Thanet District Council,24/03/2016,405350,200,,Cliftonville Community Centre,CLI035,Community Services,Revenue,Expenses,Facilities And Management Serv
http://thanet.gov.uk/supplierspend,Thanet District Council,24/03/2016,405006,7541.23,,Dcb (Kent) Ltd,DCB001,Corporate Resources and S151,Balance Sheet,Repairs And Mtce Holding A/C,Construction-Repair And Maint
http://thanet.gov.uk/supplierspend,Thanet District Council,24/03/2016,405016,116450.57,,Dcb (Kent) Ltd,DCB001,Corporate Resources and S151,Balance Sheet,Repairs And Mtce Holding A/C,Construction-Repair And Maint
http://thanet.gov.uk/supplierspend,Thanet District Council,24/03/2016,405017,9250.14,,Dcb (Kent) Ltd,DCB001,Corporate Resources and S151,Balance Sheet,Repairs And Mtce Holding A/C,Construction-Repair And Maint
http://thanet.gov.uk/supplierspend,Thanet District Council,24/03/2016,405018,3696,,Dcb (Kent) Ltd,DCB001,Corporate Resources and S151,Balance Sheet,Repairs And Mtce Holding A/C,Construction-Repair And Maint
http://thanet.gov.uk/supplierspend,Thanet District Council,24/03/2016,405387,631,,E Saunders Margate Ltd,SAU001,Corporate Resources and S151,Balance Sheet,Repairs And Mtce Holding A/C,Construction-Repair And Maint
http://thanet.gov.uk/supplierspend,Thanet District Council,24/03/2016,405388,1203.76,,E Saunders Margate Ltd,SAU001,Corporate Resources and S151,Balance Sheet,Repairs And Mtce Holding A/C,Construction-Repair And Maint
http://thanet.gov.uk/supplierspend,Thanet District Council,24/03/2016,399988,16120.71,,Heath Lambert Limited (Client Money),HEA011,Corporate Resources and S151,Balance Sheet,Insurance Holding Account,Financial Services
http://thanet.gov.uk/supplierspend,Thanet District Council,24/03/2016,399990,276.35,,Heath Lambert Limited (Client Money),HEA011,Corporate Resources and S151,Balance Sheet,Insurance Holding Account,Financial Services
http://thanet.gov.uk/supplierspend,Thanet District Council,24/03/2016,405422,47651.68,,Idox Software  Limited,IDO001,Community Services,Revenue,Communications & Computing,ICT
http://thanet.gov.uk/supplierspend,Thanet District Council,24/03/2016,404812,16897.2,,Insulate Your Home Ltd,INS029,Corporate Resources and S151,Balance Sheet,Repairs And Mtce Holding A/C,Building Construction Material
http://thanet.gov.uk/supplierspend,Thanet District Council,24/03/2016,405180,323.87,,Southern Electric,SEL007,Community Services,Revenue,Energy Costs,Utilities
http://thanet.gov.uk/supplierspend,Thanet District Council,24/03/2016,405008,2096,,Viridian Energy Solutions Limited,VIR005,Corporate Resources and S151,Balance Sheet,Repairs And Mtce Holding A/C,Facilities And Management Serv
http://thanet.gov.uk/supplierspend,Thanet District Council,24/03/2016,405338,294145,,Your Leisure Kent Limited,YOU016,Corporate Resources and S151,Balance Sheet,Your Leisure Management/Works,Arts And Leisure Services
http://thanet.gov.uk/supplierspend,Thanet District Council,29/03/2016,PC8034,6.99,,123 Reg,N/A,Community Services,Revenue,Services,ICT
http://thanet.gov.uk/supplierspend,Thanet District Council,29/03/2016,PC8078,59.98,,Acrylic WiFi,N/A,East Kent Shared Services,Revenue,Communications & Computing,ICT
http://thanet.gov.uk/supplierspend,Thanet District Council,29/03/2016,PC7948,59.72,,Amazon UK Marketplace,N/A,Operational Services,Revenue,"Equip, Furniture And Materials",Stationery
http://thanet.gov.uk/supplierspend,Thanet District Council,29/03/2016,PC7959,17.1,,Amazon UK Marketplace,N/A,Community Services,Revenue,"Equip, Furniture And Materials",Stationery
http://thanet.gov.uk/supplierspend,Thanet District Council,29/03/2016,PC8003,10.82,,Amazon UK Marketplace,N/A,Community Services,Revenue,"Clothes, Uniforms & Laundry",Stationery
http://thanet.gov.uk/supplierspend,Thanet District Council,29/03/2016,PC8044,49.2,,Amazon UK Marketplace,N/A,East Kent Shared Services,Revenue,"Equip, Furniture And Materials",Stationery
http://thanet.gov.uk/supplierspend,Thanet District Council,29/03/2016,PC8045,19.99,,Amazon UK Marketplace,N/A,East Kent Shared Services,Revenue,"Equip, Furniture And Materials",Stationery
http://thanet.gov.uk/supplierspend,Thanet District Council,29/03/2016,PC8052,10.01,1.67,Amazon UK Marketplace,N/A,East Kent Shared Services,Revenue,"Equip, Furniture And Materials",Stationery
http://thanet.gov.uk/supplierspend,Thanet District Council,29/03/2016,PC8054,16.58,,Amazon UK Marketplace,N/A,East Kent Shared Services,Revenue,"Equip, Furniture And Materials",Stationery
http://thanet.gov.uk/supplierspend,Thanet District Council,29/03/2016,PC8055,6.24,,Amazon UK Marketplace,N/A,East Kent Shared Services,Revenue,"Equip, Furniture And Materials",Stationery
http://thanet.gov.uk/supplierspend,Thanet District Council,29/03/2016,PC8062,4.99,,Amazon UK Marketplace,N/A,East Kent Shared Services,Revenue,"Equip, Furniture And Materials",Stationery
http://thanet.gov.uk/supplierspend,Thanet District Council,29/03/2016,PC8077,25.98,,Amazon UK Marketplace,N/A,East Kent Shared Services,Revenue,Communications & Computing,Stationery
http://thanet.gov.uk/supplierspend,Thanet District Council,29/03/2016,PC8080,31.6,,Amazon UK Marketplace,N/A,East Kent Shared Services,Revenue,Communications & Computing,Stationery
http://thanet.gov.uk/supplierspend,Thanet District Council,29/03/2016,PC7965,24.8,,Amazon UK Retail,N/A,East Kent Shared Services,Revenue,"Print, Stat And Gen Off Exps",Stationery
http://thanet.gov.uk/supplierspend,Thanet District Council,29/03/2016,PC7989,46.46,,Amazon UK Retail,N/A,Community Services,Revenue,"Print, Stat And Gen Off Exps",Stationery
http://thanet.gov.uk/supplierspend,Thanet District Council,29/03/2016,PC8002,45.83,,Amazon UK Retail,N/A,East Kent Shared Services,Revenue,"Equip, Furniture And Materials",Stationery
http://thanet.gov.uk/supplierspend,Thanet District Council,29/03/2016,PC8004,254.88,,Amazon UK Retail,N/A,Community Services,Revenue,"Clothes, Uniforms & Laundry",Stationery
http://thanet.gov.uk/supplierspend,Thanet District Council,29/03/2016,PC8081,13.78,,Amazon UK Retail,N/A,East Kent Shared Services,Revenue,Communications & Computing,Stationery
http://thanet.gov.uk/supplierspend,Thanet District Council,29/03/2016,PC8095,179.99,,Ancestry.co.uk,N/A,Operational Services,Revenue,Grants & Subscriptions,ICT
http://thanet.gov.uk/supplierspend,Thanet District Council,29/03/2016,PC8111,6.08,,Archive Homestore Ltd,N/A,Community Services,Revenue,Catering,Catering
http://thanet.gov.uk/supplierspend,Thanet District Council,29/03/2016,PC7980,2.5,,Asda,N/A,Community Services,Revenue,"Equip, Furniture And Materials",Catering
http://thanet.gov.uk/supplierspend,Thanet District Council,29/03/2016,PC8113,17.5,,Best Business Events,N/A,Community Services,Revenue,Expenses,Human Resources
http://thanet.gov.uk/supplierspend,Thanet District Council,29/03/2016,PC8048,3.19,,Booker Ltd,N/A,Operational Services,Revenue,Catering,Catering
http://thanet.gov.uk/supplierspend,Thanet District Council,29/03/2016,PC8049,3.19,,Booker Ltd,N/A,Operational Services,Revenue,Catering,Catering
http://thanet.gov.uk/supplierspend,Thanet District Council,29/03/2016,PC8050,19.84,,Booker Ltd,N/A,Community Services,Revenue,Catering,Catering
http://thanet.gov.uk/supplierspend,Thanet District Council,29/03/2016,PC7976,155.74,,British Airways,N/A,East Kent Shared Services,Revenue,Expenses,Human Resources
http://thanet.gov.uk/supplierspend,Thanet District Council,29/03/2016,PC7991,602.3,,Cartridgesave.co.uk,N/A,Operational Services,Revenue,"Equip, Furniture And Materials",Stationery
http://thanet.gov.uk/supplierspend,Thanet District Council,29/03/2016,PC7979,546,,Chapel Down,N/A,Community Services,Revenue,"Equip, Furniture And Materials",Catering
http://thanet.gov.uk/supplierspend,Thanet District Council,29/03/2016,PC8065,2.89,0.34,Co-Op Group,N/A,Operational Services,Revenue,Catering,Catering
http://thanet.gov.uk/supplierspend,Thanet District Council,29/03/2016,PC8051,9.99,1.67,Currys Online,N/A,Operational Services,Revenue,"Equip, Furniture And Materials",Facilities And Management Serv
http://thanet.gov.uk/supplierspend,Thanet District Council,29/03/2016,PC8074,59.99,10,Currys Online,N/A,East Kent Shared Services,Revenue,"Equip, Furniture And Materials",Facilities And Management Serv
http://thanet.gov.uk/supplierspend,Thanet District Council,29/03/2016,PC8079,975.52,,DRI Emco Software,N/A,East Kent Shared Services,Revenue,Communications & Computing,ICT
http://thanet.gov.uk/supplierspend,Thanet District Council,29/03/2016,PC8036,37,,DSA Theory,N/A,Corporate Resources and S151,Revenue,Training,Human Resources
http://thanet.gov.uk/supplierspend,Thanet District Council,29/03/2016,PC8009,167.5,,DVLA,N/A,Operational Services,Revenue,Direct Transport Costs,Various Cats - Public Sector
http://thanet.gov.uk/supplierspend,Thanet District Council,29/03/2016,PC8010,227.5,,DVLA,N/A,Operational Services,Revenue,Direct Transport Costs,Various Cats - Public Sector
http://thanet.gov.uk/supplierspend,Thanet District Council,29/03/2016,PC8011,227.5,,DVLA,N/A,Operational Services,Revenue,Direct Transport Costs,Various Cats - Public Sector
http://thanet.gov.uk/supplierspend,Thanet District Council,29/03/2016,PC8020,167.5,,DVLA,N/A,Operational Services,Revenue,Direct Transport Costs,Various Cats - Public Sector
http://thanet.gov.uk/supplierspend,Thanet District Council,29/03/2016,PC8021,167.5,,DVLA,N/A,Operational Services,Revenue,Direct Transport Costs,Various Cats - Public Sector
http://thanet.gov.uk/supplierspend,Thanet District Council,29/03/2016,PC8022,167.5,,DVLA,N/A,Operational Services,Revenue,Direct Transport Costs,Various Cats - Public Sector
http://thanet.gov.uk/supplierspend,Thanet District Council,29/03/2016,PC8023,167.5,,DVLA,N/A,Operational Services,Revenue,Direct Transport Costs,Various Cats - Public Sector
http://thanet.gov.uk/supplierspend,Thanet District Council,29/03/2016,PC8024,167.5,,DVLA,N/A,Operational Services,Revenue,Direct Transport Costs,Various Cats - Public Sector
http://thanet.gov.uk/supplierspend,Thanet District Council,29/03/2016,PC8025,167.5,,DVLA,N/A,Operational Services,Revenue,Direct Transport Costs,Various Cats - Public Sector
http://thanet.gov.uk/supplierspend,Thanet District Council,29/03/2016,PC8026,167.5,,DVLA,N/A,Operational Services,Revenue,Direct Transport Costs,Various Cats - Public Sector
http://thanet.gov.uk/supplierspend,Thanet District Council,29/03/2016,PC8027,227.5,,DVLA,N/A,Operational Services,Revenue,Direct Transport Costs,Various Cats - Public Sector
http://thanet.gov.uk/supplierspend,Thanet District Council,29/03/2016,PC8028,227.5,,DVLA,N/A,Operational Services,Revenue,Direct Transport Costs,Various Cats - Public Sector
http://thanet.gov.uk/supplierspend,Thanet District Council,29/03/2016,PC8029,227.5,,DVLA,N/A,Operational Services,Revenue,Direct Transport Costs,Various Cats - Public Sector
http://thanet.gov.uk/supplierspend,Thanet District Council,29/03/2016,PC8030,227.5,,DVLA,N/A,Operational Services,Revenue,Direct Transport Costs,Various Cats - Public Sector
http://thanet.gov.uk/supplierspend,Thanet District Council,29/03/2016,PC8037,227.5,,DVLA,N/A,Operational Services,Revenue,Direct Transport Costs,Various Cats - Public Sector
http://thanet.gov.uk/supplierspend,Thanet District Council,29/03/2016,PC8042,227.5,,DVLA,N/A,Operational Services,Revenue,Direct Transport Costs,Various Cats - Public Sector
http://thanet.gov.uk/supplierspend,Thanet District Council,29/03/2016,PC8060,142.5,,DVLA,N/A,Community Services,Revenue,Direct Transport Costs,Various Cats - Public Sector
http://thanet.gov.uk/supplierspend,Thanet District Council,29/03/2016,PC8073,30,,First Luggage Limited,N/A,East Kent Shared Services,Revenue,Communications & Computing,Mail Services
http://thanet.gov.uk/supplierspend,Thanet District Council,29/03/2016,PC7993,202.4,,FTA,N/A,Operational Services,Revenue,Direct Transport Costs,Vehicle Management
http://thanet.gov.uk/supplierspend,Thanet District Council,29/03/2016,PC7990,156.98,,Full Range Furniture,N/A,Operational Services,Revenue,"Print, Stat And Gen Off Exps",Stationery
http://thanet.gov.uk/supplierspend,Thanet District Council,29/03/2016,PC8075,291,,GC Hurrell & Co Ltd,N/A,Operational Services,Revenue,"Equip, Furniture And Materials",Vehicle Management
http://thanet.gov.uk/supplierspend,Thanet District Council,29/03/2016,PC8114,113.63,,Google,N/A,Community Services,Revenue,Miscellaneous Expenses,ICT
http://thanet.gov.uk/supplierspend,Thanet District Council,29/03/2016,PC7985,23,,Greggs Margate,N/A,Corporate Resources and S151,Revenue,Catering,Catering
http://thanet.gov.uk/supplierspend,Thanet District Council,29/03/2016,PC7986,11.5,,Greggs Margate,N/A,Corporate Resources and S151,Revenue,Catering,Catering
http://thanet.gov.uk/supplierspend,Thanet District Council,29/03/2016,PC7967,9.25,,GRO HM Passport Office,N/A,Community Services,Revenue,Services,Various Cats - Public Sector
http://thanet.gov.uk/supplierspend,Thanet District Council,29/03/2016,PC7972,42.38,,Halfords,N/A,Operational Services,Revenue,"Equip, Furniture And Materials",Vehicle Management
http://thanet.gov.uk/supplierspend,Thanet District Council,29/03/2016,PC8018,150,,HM Court,N/A,East Kent Shared Services,Revenue,Services,Various Cats - Public Sector
http://thanet.gov.uk/supplierspend,Thanet District Council,29/03/2016,PC7748,108.33,,Holiday Inn  Leicester,N/A,Corporate Governance,Revenue,Training,Human Resources
http://thanet.gov.uk/supplierspend,Thanet District Council,29/03/2016,PC8043,67.5,,HSE Books (Internet),N/A,East Kent Shared Services,Revenue,"Print, Stat And Gen Off Exps",Stationery
http://thanet.gov.uk/supplierspend,Thanet District Council,29/03/2016,PC7992,246,,Intertrade Engineering,N/A,Operational Services,Revenue,Direct Transport Costs,Vehicle Management
http://thanet.gov.uk/supplierspend,Thanet District Council,29/03/2016,PC8031,28.9,4.82,Just Eat.Co.Uk,N/A,Community Services,Revenue,Catering,Catering
http://thanet.gov.uk/supplierspend,Thanet District Council,29/03/2016,PC8057,6.4,,London & South Eastern,N/A,Community Services,Revenue,Public Transport,Human Resources
http://thanet.gov.uk/supplierspend,Thanet District Council,29/03/2016,PC7975,104.47,17.42,London City Airport,N/A,East Kent Shared Services,Revenue,Expenses,Human Resources
http://thanet.gov.uk/supplierspend,Thanet District Council,29/03/2016,PC8107,274.29,,Lynda.Com,N/A,Corporate Resources and S151,Revenue,Communications & Computing,ICT
http://thanet.gov.uk/supplierspend,Thanet District Council,29/03/2016,PC8046,21.96,,Maplin,N/A,Corporate Governance,Revenue,Communications & Computing,Building Construction Material
http://thanet.gov.uk/supplierspend,Thanet District Council,29/03/2016,PC7994,298.8,,National Windscreens,N/A,Operational Services,Revenue,Direct Transport Costs,Vehicle Management
http://thanet.gov.uk/supplierspend,Thanet District Council,29/03/2016,PC7995,298.8,,National Windscreens,N/A,Operational Services,Revenue,Direct Transport Costs,Vehicle Management
http://thanet.gov.uk/supplierspend,Thanet District Council,29/03/2016,PC7996,229.2,,National Windscreens,N/A,Operational Services,Revenue,Direct Transport Costs,Vehicle Management
http://thanet.gov.uk/supplierspend,Thanet District Council,29/03/2016,PC8076,135,,Ofcom,N/A,Operational Services,Revenue,"Print, Stat And Gen Off Exps",ICT
http://thanet.gov.uk/supplierspend,Thanet District Council,29/03/2016,PC7982,200,,Paypal Darren Caveney,N/A,Corporate Resources and S151,Revenue,Advertising Expenses,Facilities And Management Serv
http://thanet.gov.uk/supplierspend,Thanet District Council,29/03/2016,PC8066,45.5,,Performing Rights Society,N/A,Community Services,Revenue,Services,Financial Services
http://thanet.gov.uk/supplierspend,Thanet District Council,29/03/2016,PC7961,250,,Possession Claims Online,N/A,Community Services,Revenue,Services,Various Cats - Public Sector
http://thanet.gov.uk/supplierspend,Thanet District Council,29/03/2016,PC7962,250,,Possession Claims Online,N/A,Community Services,Revenue,Services,Various Cats - Public Sector
http://thanet.gov.uk/supplierspend,Thanet District Council,29/03/2016,PC7968,110,,Possession Claims Online,N/A,Community Services,Revenue,Services,Various Cats - Public Sector
http://thanet.gov.uk/supplierspend,Thanet District Council,29/03/2016,PC7969,250,,Possession Claims Online,N/A,Community Services,Revenue,Services,Various Cats - Public Sector
http://thanet.gov.uk/supplierspend,Thanet District Council,29/03/2016,PC8032,250,,Possession Claims Online,N/A,Community Services,Revenue,Services,Various Cats - Public Sector
http://thanet.gov.uk/supplierspend,Thanet District Council,29/03/2016,PC8033,250,,Possession Claims Online,N/A,Community Services,Revenue,Services,Various Cats - Public Sector
http://thanet.gov.uk/supplierspend,Thanet District Council,29/03/2016,PC8039,250,,Possession Claims Online,N/A,Community Services,Revenue,Services,Various Cats - Public Sector
http://thanet.gov.uk/supplierspend,Thanet District Council,29/03/2016,PC8040,250,,Possession Claims Online,N/A,Community Services,Revenue,Services,Various Cats - Public Sector
http://thanet.gov.uk/supplierspend,Thanet District Council,29/03/2016,PC8041,250,,Possession Claims Online,N/A,Community Services,Revenue,Services,Various Cats - Public Sector
http://thanet.gov.uk/supplierspend,Thanet District Council,29/03/2016,PC8067,250,,Possession Claims Online,N/A,Community Services,Revenue,Services,Various Cats - Public Sector
http://thanet.gov.uk/supplierspend,Thanet District Council,29/03/2016,PC8069,250,,Possession Claims Online,N/A,Community Services,Revenue,Services,Various Cats - Public Sector
http://thanet.gov.uk/supplierspend,Thanet District Council,29/03/2016,PC8071,250,,Possession Claims Online,N/A,Community Services,Revenue,Services,Various Cats - Public Sector
http://thanet.gov.uk/supplierspend,Thanet District Council,29/03/2016,PC7978,80,,Post Office Ltd,N/A,Community Services,Revenue,"Equip, Furniture And Materials",Mail Services
http://thanet.gov.uk/supplierspend,Thanet District Council,29/03/2016,PC7977,173.98,29,Premier Inn,N/A,East Kent Shared Services,Revenue,Expenses,Human Resources
http://thanet.gov.uk/supplierspend,Thanet District Council,29/03/2016,PC8058,14.98,,Premier Inn Blackpool,N/A,Community Services,Revenue,Expenses,Human Resources
http://thanet.gov.uk/supplierspend,Thanet District Council,29/03/2016,PC8059,8.96,,Quex Barn,N/A,Community Services,Revenue,Rents,Catering
http://thanet.gov.uk/supplierspend,Thanet District Council,29/03/2016,PC8061,42.93,,RIBA Enterprises Ltd.,N/A,Community Services,Revenue,"Print, Stat And Gen Off Exps",Stationery
http://thanet.gov.uk/supplierspend,Thanet District Council,29/03/2016,PC8112,367.6,,Royal Mail,N/A,Community Services,Revenue,"Equip, Furniture And Materials",Mail Services
http://thanet.gov.uk/supplierspend,Thanet District Council,29/03/2016,PC7963,23,3.84,Sainsburys,N/A,Operational Services,Revenue,Catering,Catering
http://thanet.gov.uk/supplierspend,Thanet District Council,29/03/2016,PC8053,25.8,4.3,Sainsburys,N/A,Operational Services,Revenue,Catering,Catering
http://thanet.gov.uk/supplierspend,Thanet District Council,29/03/2016,PC8056,146.66,,Secret Garden,N/A,Community Services,Revenue,"Equip, Furniture And Materials",Facilities And Management Serv
http://thanet.gov.uk/supplierspend,Thanet District Council,29/03/2016,PC7981,139,,Shutterstock,N/A,Corporate Resources and S151,Revenue,"Print, Stat And Gen Off Exps",Facilities And Management Serv
http://thanet.gov.uk/supplierspend,Thanet District Council,29/03/2016,PC8019,33.33,,Smiths Court Hotel,N/A,Community Services,Revenue,Services,Human Resources
http://thanet.gov.uk/supplierspend,Thanet District Council,29/03/2016,PC8017,163.2,27.2,Teacrate.Com,N/A,Community Services,Revenue,"Equip, Furniture And Materials",Facilities And Management Serv
http://thanet.gov.uk/supplierspend,Thanet District Council,29/03/2016,PC8005,18.5,,Tetrasoc,N/A,Community Services,Revenue,"Equip, Furniture And Materials",Stationery
http://thanet.gov.uk/supplierspend,Thanet District Council,29/03/2016,PC8012,440,,Thanet County Court,N/A,Community Services,Revenue,Services,Various Cats - Public Sector
http://thanet.gov.uk/supplierspend,Thanet District Council,29/03/2016,PC8068,8.24,,TNA Discovery Orders,N/A,Operational Services,Revenue,"Print, Stat And Gen Off Exps",Stationery
http://thanet.gov.uk/supplierspend,Thanet District Council,29/03/2016,PC8006,20.64,,Toolstation Ltd,N/A,Community Services,Revenue,"Equip, Furniture And Materials",Building Construction Material
http://thanet.gov.uk/supplierspend,Thanet District Council,29/03/2016,PC8007,10.68,,Toolstation Ltd,N/A,Community Services,Revenue,"Equip, Furniture And Materials",Building Construction Material
http://thanet.gov.uk/supplierspend,Thanet District Council,29/03/2016,PC8008,19.95,,Toolstation Ltd,N/A,Operational Services,Revenue,"Equip, Furniture And Materials",Building Construction Material
http://thanet.gov.uk/supplierspend,Thanet District Council,29/03/2016,PC8047,2.07,,Toolstation Ltd,N/A,Corporate Governance,Revenue,Communications & Computing,Building Construction Material
http://thanet.gov.uk/supplierspend,Thanet District Council,29/03/2016,PC8070,4.97,,Toolstation Ltd,N/A,Community Services,Revenue,"Equip, Furniture And Materials",Building Construction Material
http://thanet.gov.uk/supplierspend,Thanet District Council,29/03/2016,PC7970,11.5,,Transport For London,N/A,Chief Executive,Revenue,Expenses,Human Resources
http://thanet.gov.uk/supplierspend,Thanet District Council,29/03/2016,PC8115,9.4,,Value Products Ltd,N/A,Community Services,Revenue,"Print, Stat And Gen Off Exps",Building Construction Material
http://thanet.gov.uk/supplierspend,Thanet District Council,29/03/2016,PC7942,45.2,,Virgin Trains,N/A,Operational Services,Revenue,Public Transport,Human Resources
http://thanet.gov.uk/supplierspend,Thanet District Council,29/03/2016,PC7943,105.75,,Virgin Trains,N/A,Community Services,Revenue,Public Transport,Human Resources
http://thanet.gov.uk/supplierspend,Thanet District Council,29/03/2016,PC7944,77.8,,Virgin Trains,N/A,Community Services,Revenue,Public Transport,Human Resources
http://thanet.gov.uk/supplierspend,Thanet District Council,29/03/2016,PC7945,15.3,,Virgin Trains,N/A,Community Services,Revenue,Public Transport,Human Resources
http://thanet.gov.uk/supplierspend,Thanet District Council,29/03/2016,PC7952,106.75,,Virgin Trains,N/A,Community Services,Revenue,Public Transport,Human Resources
http://thanet.gov.uk/supplierspend,Thanet District Council,29/03/2016,PC7953,23,,Virgin Trains,N/A,Community Services,Revenue,Public Transport,Human Resources
http://thanet.gov.uk/supplierspend,Thanet District Council,29/03/2016,PC7954,63,,Virgin Trains,N/A,Corporate Resources and S151,Revenue,Public Transport,Human Resources
http://thanet.gov.uk/supplierspend,Thanet District Council,29/03/2016,PC7955,93.9,,Virgin Trains,N/A,Operational Services,Revenue,Public Transport,Human Resources
http://thanet.gov.uk/supplierspend,Thanet District Council,29/03/2016,PC7964,80.5,,Virgin Trains,N/A,Corporate Governance,Revenue,Public Transport,Human Resources
http://thanet.gov.uk/supplierspend,Thanet District Council,29/03/2016,PC7971,77.4,,Virgin Trains,N/A,Community Services,Revenue,Public Transport,Human Resources
http://thanet.gov.uk/supplierspend,Thanet District Council,29/03/2016,PC7997,44,,Virgin Trains,N/A,Corporate Governance,Revenue,Public Transport,Human Resources
http://thanet.gov.uk/supplierspend,Thanet District Council,29/03/2016,PC7998,32,,Virgin Trains,N/A,Community Services,Revenue,Public Transport,Human Resources
http://thanet.gov.uk/supplierspend,Thanet District Council,29/03/2016,PC7999,59.2,,Virgin Trains,N/A,Corporate Resources and S151,Revenue,Public Transport,Human Resources
http://thanet.gov.uk/supplierspend,Thanet District Council,29/03/2016,PC8038,73,,Virgin Trains,N/A,Community Services,Revenue,Public Transport,Human Resources
http://thanet.gov.uk/supplierspend,Thanet District Council,29/03/2016,PC8084,78,,Virgin Trains,N/A,Community Services,Revenue,Public Transport,Human Resources
http://thanet.gov.uk/supplierspend,Thanet District Council,29/03/2016,PC8085,15.3,,Virgin Trains,N/A,East Kent Shared Services,Revenue,Public Transport,Human Resources
http://thanet.gov.uk/supplierspend,Thanet District Council,29/03/2016,PC7949,70.83,,Walpole Bay Hotel,N/A,Community Services,Revenue,Rents,Human Resources
http://thanet.gov.uk/supplierspend,Thanet District Council,29/03/2016,PC7988,21.94,3.66,WH Smith,N/A,Corporate Resources and S151,Revenue,Catering,Stationery
http://thanet.gov.uk/supplierspend,Thanet District Council,29/03/2016,PC8063,4.16,,Wickes,N/A,Operational Services,Revenue,"Equip, Furniture And Materials",Building Construction Material
http://thanet.gov.uk/supplierspend,Thanet District Council,29/03/2016,PC8064,5.79,,Wilko,N/A,Operational Services,Revenue,"Equip, Furniture And Materials",Facilities And Management Serv
http://thanet.gov.uk/supplierspend,Thanet District Council,29/03/2016,PC8110,45.84,,Wilko.com,N/A,Community Services,Revenue,"Equip, Furniture And Materials",Facilities And Management Serv
http://thanet.gov.uk/supplierspend,Thanet District Council,29/03/2016,PC7984,17.97,3,WM Morrisons PLC,N/A,Corporate Resources and S151,Revenue,Catering,Catering
http://thanet.gov.uk/supplierspend,Thanet District Council,29/03/2016,PC7987,5,0.84,WM Morrisons PLC,N/A,Corporate Resources and S151,Revenue,Catering,Catering
http://thanet.gov.uk/supplierspend,Thanet District Council,29/03/2016,PC8000,1.67,,WM Morrisons PLC,N/A,East Kent Shared Services,Revenue,Catering,Catering
http://thanet.gov.uk/supplierspend,Thanet District Council,29/03/2016,PC8001,7.02,,WM Morrisons PLC,N/A,East Kent Shared Services,Revenue,Catering,Catering
http://thanet.gov.uk/supplierspend,Thanet District Council,29/03/2016,PC8106,10.4,1.74,WM Morrisons PLC,N/A,Community Services,Revenue,Catering,Catering
http://thanet.gov.uk/supplierspend,Thanet District Council,29/03/2016,PC7973,80.5,,Woodville Tickets,N/A,Chief Executive,Revenue,Expenses,Arts and Leisure
http://thanet.gov.uk/supplierspend,Thanet District Council,29/03/2016,PC7974,27,,Woodville Tickets,N/A,Chief Executive,Revenue,Catering,Arts and Leisure
http://thanet.gov.uk/supplierspend,Thanet District Council,29/03/2016,PC8108,-3,,Woodville Tickets,N/A,Chief Executive,Revenue,Expenses,Arts and Leisure
http://thanet.gov.uk/supplierspend,Thanet District Council,30/03/2016,405415,401.15,,Allstar Business Solutions Ltd,ALL038,Operational Services,Revenue,Direct Transport Costs,Vehicle Management
http://thanet.gov.uk/supplierspend,Thanet District Council,30/03/2016,405655,6.32,,Allstar Business Solutions Ltd,ALL038,Operational Services,Revenue,Direct Transport Costs,Vehicle Management
http://thanet.gov.uk/supplierspend,Thanet District Council,30/03/2016,405655,11.06,,Allstar Business Solutions Ltd,ALL038,Operational Services,Revenue,Direct Transport Costs,Vehicle Management
http://thanet.gov.uk/supplierspend,Thanet District Council,30/03/2016,405655,1.58,,Allstar Business Solutions Ltd,ALL038,Chief Executive,Revenue,Direct Transport Costs,Vehicle Management
http://thanet.gov.uk/supplierspend,Thanet District Council,30/03/2016,405655,1.58,,Allstar Business Solutions Ltd,ALL038,Operational Services,Revenue,Direct Transport Costs,Vehicle Management
http://thanet.gov.uk/supplierspend,Thanet District Council,30/03/2016,405655,1.58,,Allstar Business Solutions Ltd,ALL038,Operational Services,Revenue,Direct Transport Costs,Vehicle Management
http://thanet.gov.uk/supplierspend,Thanet District Council,30/03/2016,405572,3607,,Discovery Planet Cic,DIS019,Community Services,Revenue,Services,Grants
http://thanet.gov.uk/supplierspend,Thanet District Council,30/03/2016,405495,348.1,,Hr Go (Kent) Ltd,HRG001,Community Services,Revenue,Agency Staff,Human Resources
http://thanet.gov.uk/supplierspend,Thanet District Council,30/03/2016,405571,1500,,Mr Nicholas Ham,HAM019,Operational Services,Revenue,Expenses,Human Resources
http://thanet.gov.uk/supplierspend,Thanet District Council,30/03/2016,405570,603.75,,Osborne Richardson Limited,OSB009,Community Services,Revenue,Agency Staff,Human Resources
http://thanet.gov.uk/supplierspend,Thanet District Council,30/03/2016,405653,19350,,Public Works Loan Board,PWL001,Corporate Resources and S151,Balance Sheet,Debit Interest And Expenses,Investments And Loans
http://thanet.gov.uk/supplierspend,Thanet District Council,30/03/2016,405660,525.25,,Secure Living Limited,SEC018,Community Services,Revenue,"Equip, Furniture And Materials",Maritime Services
http://thanet.gov.uk/supplierspend,Thanet District Council,30/03/2016,405562,679,,Solon Security Limited,SOL015,Community Services,Revenue,"Equip, Furniture And Materials",Healthcare
http://thanet.gov.uk/supplierspend,Thanet District Council,31/03/2016,405732,18432.68,,Public Works Loan Board,PWL001,Corporate Resources and S151,Balance Sheet,Debit Interest And Expenses,Investments And Loans
